Workbook

Sheet Home
B1: تطبيق تدبير التحويلات المالية لبرنامج تيسير
S2: Liste
E3: تحميل ملف اكسيل الخاص بالأسر المستفيدة من التحويل والذي تم تنزيله من مسار (خدمات تيسير > معطيات حول التحويل المالي). | O3: البحث حسب رقم البطاقة الوطنية:
E5: عدد الأسر المستفيدة من التحويل بـ : | I5: =Liste!$E$5 -> المؤسسة1 | P5: 88808 | Q5: GA
E6: والتي تم تحميلها للتطبيق هو: | I6: =COUNTA(Liste!$B5:$B994)-COUNTIF((Liste!$B5:$B994),0)-COUNTBLANK(Liste!$B5:$B994) -> 181 | P6: =CONCATENATE($Q$5,$P$5) -> GA88808
N7: الرقم الترتيبي: | P7: =IFERROR(INDEX(INDIRECT(""&$S$2&"!$A5:$A994"),MATCH($P$6,INDIRECT(""&$S$2&"!$G5:$G994"),0)),"") -> 
E8: سيتم توليد أرقام ترتيبية لكل مستفيد باللوائح والتي ستسهل عمليات توزيع "وصولات استخلاص المنحة"
E10: عدد الصفحات التي سيتم طباعتها أوتوماتيكيا: | I10: =IF($I$6/57=0," ",ROUNDUP($I$6/57,0)) -> 4 | N10: المؤسسة التعليمية: | P10: =IFERROR(INDEX(INDIRECT(""&$S$2&"!$E5:$E994"),MATCH($P$6,INDIRECT(""&$S$2&"!$G5:$G994"),0)),"") -> 
E12: طباعة لوائح أخرى مرتبة من الأصغر إلى الأكبر حسب رقم ب ت و، لتسهيل عملية البحث بالعين. كما سيحتفظ كل مستفيد بنفس الرقم الترتيبي المولد سابقا | N12: اسم ونسب المستفيد: | P12: =IFERROR(INDEX(INDIRECT(""&$S$2&"!$F5:$F994"),MATCH($P$6,INDIRECT(""&$S$2&"!$G5:$G994"),0)),"") -> 
N14: رقم تيسير: | P14: =IFERROR(INDEX(INDIRECT(""&$S$2&"!$H5:$H994"),MATCH($P$6,INDIRECT(""&$S$2&"!$G5:$G994"),0)),"") -> 
C15: المرجو إدخال اليوم المخصص لاستخلاص المنحة: | H15: 2021-12-17
N16: مبلغ المنحة: | P16: =IFERROR(INDEX(INDIRECT(""&$S$2&"!$I5:$I994"),MATCH($P$6,INDIRECT(""&$S$2&"!$G5:$G994"),0)),"") -> 
E17: التوجه لصفحة الوصولات لطباعة كل 6 مستفيدين في صفحة واحدة وذلك بالضغط على السهم لليمين كل مرة ثم اختيار الطباعة، وقد تم فيها إضافة الطباعة باستعمال خاصية "من... إلى" (أو حتى الكلية) ، وخاصية طباعة صفحات متفرقة.
E20: طباعة جميع الوصولات مرة واحدة ملاحظة: إذا كان الحاسوب المستعمل ضعيفا، المرجو الاكتفاء بطباعة (*6) | N20: ملاحظات:
N21: لتغيير التطبيق حسب رغباتكم: رمز حماية الصفحات 0000
N22: التطبيق يعتمد على أكواد VBA: رمز الحماية 0000
E23: لمسح جميع المعطيات التي تم إدخالها للتطبيق، لتهييئه للائحة أخرى، كما يرجى قبل البدء بجميع الأوامر السالفة اختيار الطابعة Par Defaut أولا.
N24: للتواصل:
N25: أحمد الضيف، متصرف تربوي، سيدي سليمان
N26: ahmed.eddayfe@yahoo.com

Sheet How
G8: اختر الفترة المناسبة

Sheet Num (hidden)
A9: lst | B9: recu
A10: 0
A11: 1 | B11: 1
A12: 2 | B12: 7
A13: 3 | B13: 13
A14: 4 | B14: 19
A15: 5 | B15: 25
A16: 6 | B16: 31
A17: 7 | B17: 37
A18: 8 | B18: 43
A19: 9 | B19: 49
A20: 10 | B20: 55
A21: 11 | B21: 61
A22: 12 | B22: 67
A23: 13 | B23: 73
A24: 14 | B24: 79
A25: 15 | B25: 85
A26: 16 | B26: 91
A27: 17 | B27: 97
A28: 18 | B28: 103
A29: 19 | B29: 109
A30: 20 | B30: 115
A31: 21 | B31: 121
A32: 22 | B32: 127
A33: 23 | B33: 133
A34: 24 | B34: 139
A35: 25 | B35: 145
A36: 26 | B36: 151
A37: 27 | B37: 157
A38: 28 | B38: 163
A39: 29 | B39: 169
A40: 30 | B40: 175
A41: 31 | B41: 181
A42: 32 | B42: 187
A43: 33 | B43: 193
A44: 34 | B44: 199
A45: 35 | B45: 205
A46: 36 | B46: 211
A47: 37 | B47: 217
A48: 38 | B48: 223
A49: 39 | B49: 229
A50: 40 | B50: 235
A51: 41 | B51: 241
A52: 42 | B52: 247
A53: 43 | B53: 253
A54: 44 | B54: 259
A55: 45 | B55: 265
A56: 46 | B56: 271
A57: 47 | B57: 277
A58: 48 | B58: 283
A59: 49 | B59: 289
A60: 50 | B60: 295
A61: 51 | B61: 301
A62: 52 | B62: 307
A63: 53 | B63: 313
A64: 54 | B64: 319
A65: 55 | B65: 325
A66: 56 | B66: 331
A67: 57 | B67: 337
A68: 58 | B68: 343
A69: 59 | B69: 349
A70: 60 | B70: 355
A71: 61 | B71: 361
A72: 62 | B72: 367
A73: 63 | B73: 373
A74: 64 | B74: 379
A75: 65 | B75: 385
A76: 66 | B76: 391
A77: 67 | B77: 397
A78: 68 | B78: 403
A79: 69 | B79: 409
A80: 70 | B80: 415
A81: 71 | B81: 421
A82: 72 | B82: 427
A83: 73 | B83: 433
A84: 74 | B84: 439
A85: 75 | B85: 445
A86: 76 | B86: 451
A87: 77 | B87: 457
A88: 78 | B88: 463
A89: 79 | B89: 469
A90: 80 | B90: 475
A91: 81 | B91: 481
A92: 82 | B92: 487
A93: 83 | B93: 493
A94: 84 | B94: 499
A95: 85 | B95: 505
A96: 86 | B96: 511
A97: 87 | B97: 517
A98: 88 | B98: 523
A99: 89 | B99: 529
A100: 90 | B100: 535
A101: 91 | B101: 541
A102: 92 | B102: 547
A103: 93 | B103: 553
A104: 94 | B104: 559
A105: 95 | B105: 565
A106: 96 | B106: 571
A107: 97 | B107: 577
A108: 98 | B108: 583
A109: 99 | B109: 589
A110: 100 | B110: 595
A111: 101 | B111: 601
A112: 102 | B112: 607
A113: 103 | B113: 613
A114: 104 | B114: 619
A115: 105 | B115: 625
A116: 106 | B116: 631
A117: 107 | B117: 637
A118: 108 | B118: 643
A119: 109 | B119: 649
A120: 110 | B120: 655
A121: 111 | B121: 661
A122: 112 | B122: 667
A123: 113 | B123: 673
A124: 114 | B124: 679
A125: 115 | B125: 685
A126: 116 | B126: 691
A127: 117 | B127: 697
A128: 118 | B128: 703
A129: 119 | B129: 709
A130: 120 | B130: 715
A131: 121 | B131: 721
A132: 122 | B132: 727
A133: 123 | B133: 733
A134: 124 | B134: 739
A135: 125 | B135: 745
A136: 126 | B136: 751
A137: 127 | B137: 757
A138: 128 | B138: 763
A139: 129 | B139: 769
A140: 130 | B140: 775
A141: 131 | B141: 781
A142: 132 | B142: 787
A143: 133 | B143: 793
A144: 134 | B144: 799
A145: 135 | B145: 805
A146: 136 | B146: 811
A147: 137 | B147: 817
A148: 138 | B148: 823
A149: 139 | B149: 829
A150: 140 | B150: 835
A151: 141 | B151: 841
A152: 142 | B152: 847
A153: 143 | B153: 853
A154: 144 | B154: 859
A155: 145 | B155: 865
A156: 146 | B156: 871
A157: 147 | B157: 877
A158: 148 | B158: 883
A159: 149 | B159: 889
A160: 150 | B160: 895
A161: 151 | B161: 901
A162: 152 | B162: 907
A163: 153 | B163: 913
A164: 154 | B164: 919
A165: 155 | B165: 925
A166: 156 | B166: 931
A167: 157 | B167: 937
A168: 158 | B168: 943
A169: 159 | B169: 949
A170: 160 | B170: 955
A171: 161 | B171: 961
A172: 162 | B172: 967
A173: 163 | B173: 973
A174: 164 | B174: 979
A175: 165 | B175: 985
A176: 166 | B176: 991
A177: 167 | B177: 997
A178: 168
A179: 169
A180: 170
A181: 171
A182: 172
A183: 173
A184: 174
A185: 175
A186: 176
A187: 177
A188: 178
A189: 179
A190: 180
A191: 181
A192: 182
A193: 183
A194: 184
A195: 185
A196: 186
A197: 187
A198: 188
A199: 189
A200: 190
A201: 191
A202: 192
A203: 193
A204: 194
A205: 195
A206: 196
A207: 197
A208: 198
... 801 more rows

Sheet Liste
P1: Data
E2: لائحة الأسر المستفيدة من التحويل | P2: Num
A4: ر ت | B4: =IFERROR(INDEX(INDIRECT(""&$P$1&"!$B11:$B1000"),MATCH($A4,INDIRECT(""&$P$2&"!$A11:$A1000"),0)),"") ->  | C4: المديرية الإقليمية | D4: الجماعة | E4: المؤسسة | F4: الاسم و النسب | G4: رقم البطاقة الوطنية | H4: رقم تيسير | I4: المبلغ بالدرهم
A5: 1 | B5: الأكاديمية | C5: =IFERROR(INDEX(INDIRECT(""&$P$1&"!$C11:$C1000"),MATCH($A5,INDIRECT(""&$P$2&"!$A11:$A1000"),0)),"") -> المديرية | D5: =IFERROR(INDEX(INDIRECT(""&$P$1&"!$D11:$D1000"),MATCH($A5,INDIRECT(""&$P$2&"!$A11:$A1000"),0)),"") -> الجماعة | E5: =IFERROR(INDEX(INDIRECT(""&$P$1&"!$E11:$E1000"),MATCH($A5,INDIRECT(""&$P$2&"!$A11:$A1000"),0)),"") -> المؤسسة1 | F5: =IFERROR(INDEX(INDIRECT(""&$P$1&"!$F11:$F1000"),MATCH($A5,INDIRECT(""&$P$2&"!$A11:$A1000"),0)),"") -> الاسم 1 | G5: =IFERROR(INDEX(INDIRECT(""&$P$1&"!$G11:$G1000"),MATCH($A5,INDIRECT(""&$P$2&"!$A11:$A1000"),0)),"") -> P121212 | H5: =IFERROR(INDEX(INDIRECT(""&$P$1&"!$H11:$H1000"),MATCH($A5,INDIRECT(""&$P$2&"!$A11:$A1000"),0)),"") -> 1111111111 | I5: =IFERROR(INDEX(INDIRECT(""&$P$1&"!$I11:$I1000"),MATCH($A5,INDIRECT(""&$P$2&"!$A11:$A1000"),0)),"") -> 420
A6: 2 | B6: الأكاديمية | C6: المديرية | D6: الجماعة | E6: المؤسسة1 | F6: الاسم 2 | G6: P121213 | H6: 1111111112 | I6: 1080
A7: 3 | B7: الأكاديمية | C7: المديرية | D7: الجماعة | E7: المؤسسة1 | F7: الاسم 3 | G7: P121214 | H7: 1111111115 | I7: 1120
A8: 4 | B8: الأكاديمية | C8: المديرية | D8: الجماعة | E8: المؤسسة1 | F8: الاسم 4 | G8: P121215 | H8: 1111111118 | I8: 840
A9: 5 | B9: الأكاديمية | C9: المديرية | D9: الجماعة | E9: المؤسسة1 | F9: الاسم 5 | G9: P121216 | H9: 1111111121 | I9: 420
A10: 6 | B10: الأكاديمية | C10: المديرية | D10: الجماعة | E10: المؤسسة1 | F10: الاسم 6 | G10: P121217 | H10: 1111111124 | I10: 240
A11: 7 | B11: الأكاديمية | C11: المديرية | D11: الجماعة | E11: المؤسسة1 | F11: الاسم 7 | G11: P121218 | H11: 1111111127 | I11: 480
A12: 8 | B12: الأكاديمية | C12: المديرية | D12: الجماعة | E12: المؤسسة1 | F12: الاسم 8 | G12: P121219 | H12: 1111111130 | I12: 960
A13: 9 | B13: الأكاديمية | C13: المديرية | D13: الجماعة | E13: المؤسسة1 | F13: الاسم 9 | G13: P121220 | H13: 1111111133 | I13: 660
A14: 10 | B14: الأكاديمية | C14: المديرية | D14: الجماعة | E14: المؤسسة1 | F14: الاسم 10 | G14: P121221 | H14: 1111111136 | I14: 1080
A15: 11 | B15: الأكاديمية | C15: المديرية | D15: الجماعة | E15: المؤسسة1 | F15: الاسم 11 | G15: P121222 | H15: 1111111139 | I15: 420
A16: 12 | B16: الأكاديمية | C16: المديرية | D16: الجماعة | E16: المؤسسة1 | F16: الاسم 12 | G16: P121223 | H16: 1111111142 | I16: 240
A17: 13 | B17: الأكاديمية | C17: المديرية | D17: الجماعة | E17: المؤسسة1 | F17: الاسم 13 | G17: P121224 | H17: 1111111145 | I17: 420
A18: 14 | B18: الأكاديمية | C18: المديرية | D18: الجماعة | E18: المؤسسة1 | F18: الاسم 14 | G18: P121225 | H18: 1111111148 | I18: 420
A19: 15 | B19: الأكاديمية | C19: المديرية | D19: الجماعة | E19: المؤسسة1 | F19: الاسم 15 | G19: P121226 | H19: 1111111151 | I19: 420
A20: 16 | B20: الأكاديمية | C20: المديرية | D20: الجماعة | E20: المؤسسة1 | F20: الاسم 16 | G20: P121227 | H20: 1111111154 | I20: 420
A21: 17 | B21: الأكاديمية | C21: المديرية | D21: الجماعة | E21: المؤسسة1 | F21: الاسم 17 | G21: P121228 | H21: 1111111157 | I21: 720
A22: 18 | B22: الأكاديمية | C22: المديرية | D22: الجماعة | E22: المؤسسة1 | F22: الاسم 18 | G22: P121229 | H22: 1111111160 | I22: 1020
A23: 19 | B23: الأكاديمية | C23: المديرية | D23: الجماعة | E23: المؤسسة1 | F23: الاسم 19 | G23: P121230 | H23: 1111111163 | I23: 420
A24: 20 | B24: الأكاديمية | C24: المديرية | D24: الجماعة | E24: المؤسسة1 | F24: الاسم 20 | G24: P121231 | H24: 1111111166 | I24: 600
A25: 21 | B25: الأكاديمية | C25: المديرية | D25: الجماعة | E25: المؤسسة1 | F25: الاسم 21 | G25: P121232 | H25: 1111111169 | I25: 840
A26: 22 | B26: الأكاديمية | C26: المديرية | D26: الجماعة | E26: المؤسسة1 | F26: الاسم 22 | G26: P121233 | H26: 1111111172 | I26: 720
A27: 23 | B27: الأكاديمية | C27: المديرية | D27: الجماعة | E27: المؤسسة1 | F27: الاسم 23 | G27: P121234 | H27: 1111111175 | I27: 420
A28: 24 | B28: الأكاديمية | C28: المديرية | D28: الجماعة | E28: المؤسسة1 | F28: الاسم 24 | G28: P121235 | H28: 1111111178 | I28: 420
A29: 25 | B29: الأكاديمية | C29: المديرية | D29: الجماعة | E29: المؤسسة1 | F29: الاسم 25 | G29: P121236 | H29: 1111111181 | I29: 240
A30: 26 | B30: الأكاديمية | C30: المديرية | D30: الجماعة | E30: المؤسسة1 | F30: الاسم 26 | G30: P121237 | H30: 1111111184 | I30: 240
A31: 27 | B31: الأكاديمية | C31: المديرية | D31: الجماعة | E31: المؤسسة1 | F31: الاسم 27 | G31: P121238 | H31: 1111111187 | I31: 420
A32: 28 | B32: الأكاديمية | C32: المديرية | D32: الجماعة | E32: المؤسسة1 | F32: الاسم 28 | G32: P121239 | H32: 1111111190 | I32: 300
A33: 29 | B33: الأكاديمية | C33: المديرية | D33: الجماعة | E33: المؤسسة1 | F33: الاسم 29 | G33: P121240 | H33: 1111111193 | I33: 300
A34: 30 | B34: الأكاديمية | C34: المديرية | D34: الجماعة | E34: المؤسسة1 | F34: الاسم 30 | G34: P121241 | H34: 1111111196 | I34: 660
A35: 31 | B35: الأكاديمية | C35: المديرية | D35: الجماعة | E35: المؤسسة1 | F35: الاسم 31 | G35: P121242 | H35: 1111111199 | I35: 420
A36: 32 | B36: الأكاديمية | C36: المديرية | D36: الجماعة | E36: المؤسسة1 | F36: الاسم 32 | G36: P121243 | H36: 1111111202 | I36: 420
A37: 33 | B37: الأكاديمية | C37: المديرية | D37: الجماعة | E37: المؤسسة1 | F37: الاسم 33 | G37: P121244 | H37: 1111111205 | I37: 420
A38: 34 | B38: الأكاديمية | C38: المديرية | D38: الجماعة | E38: المؤسسة1 | F38: الاسم 34 | G38: P121245 | H38: 1111111208 | I38: 420
A39: 35 | B39: الأكاديمية | C39: المديرية | D39: الجماعة | E39: المؤسسة1 | F39: الاسم 35 | G39: P121246 | H39: 1111111211 | I39: 300
A40: 36 | B40: الأكاديمية | C40: المديرية | D40: الجماعة | E40: المؤسسة1 | F40: الاسم 36 | G40: P121247 | H40: 1111111214 | I40: 280
A41: 37 | B41: الأكاديمية | C41: المديرية | D41: الجماعة | E41: المؤسسة1 | F41: الاسم 37 | G41: P121248 | H41: 1111111217 | I41: 420
A42: 38 | B42: الأكاديمية | C42: المديرية | D42: الجماعة | E42: المؤسسة1 | F42: الاسم 38 | G42: P121249 | H42: 1111111220 | I42: 420
A43: 39 | B43: الأكاديمية | C43: المديرية | D43: الجماعة | E43: المؤسسة1 | F43: الاسم 39 | G43: P121250 | H43: 1111111223 | I43: 600
A44: 40 | B44: الأكاديمية | C44: المديرية | D44: الجماعة | E44: المؤسسة1 | F44: الاسم 40 | G44: P121251 | H44: 1111111226 | I44: 420
A45: 41 | B45: الأكاديمية | C45: المديرية | D45: الجماعة | E45: المؤسسة1 | F45: الاسم 41 | G45: P121252 | H45: 1111111229 | I45: 420
A46: 42 | B46: الأكاديمية | C46: المديرية | D46: الجماعة | E46: المؤسسة1 | F46: الاسم 42 | G46: P121253 | H46: 1111111232 | I46: 480
A47: 43 | B47: الأكاديمية | C47: المديرية | D47: الجماعة | E47: المؤسسة1 | F47: الاسم 43 | G47: P121254 | H47: 1111111235 | I47: 420
A48: 44 | B48: الأكاديمية | C48: المديرية | D48: الجماعة | E48: المؤسسة1 | F48: الاسم 44 | G48: P121255 | H48: 1111111238 | I48: 960
A49: 45 | B49: الأكاديمية | C49: المديرية | D49: الجماعة | E49: المؤسسة1 | F49: الاسم 45 | G49: P121256 | H49: 1111111241 | I49: 720
A50: 46 | B50: الأكاديمية | C50: المديرية | D50: الجماعة | E50: المؤسسة1 | F50: الاسم 46 | G50: P121257 | H50: 1111111244 | I50: 420
A51: 47 | B51: الأكاديمية | C51: المديرية | D51: الجماعة | E51: المؤسسة1 | F51: الاسم 47 | G51: P121258 | H51: 1111111247 | I51: 320
A52: 48 | B52: الأكاديمية | C52: المديرية | D52: الجماعة | E52: المؤسسة1 | F52: الاسم 48 | G52: P121259 | H52: 1111111250 | I52: 1200
A53: 49 | B53: الأكاديمية | C53: المديرية | D53: الجماعة | E53: المؤسسة1 | F53: الاسم 49 | G53: P121260 | H53: 1111111253 | I53: 180
A54: 50 | B54: الأكاديمية | C54: المديرية | D54: الجماعة | E54: المؤسسة1 | F54: الاسم 50 | G54: P121261 | H54: 1111111256 | I54: 420
A55: 51 | B55: الأكاديمية | C55: المديرية | D55: الجماعة | E55: المؤسسة1 | F55: الاسم 51 | G55: P121262 | H55: 1111111259 | I55: 660
A56: 52 | B56: الأكاديمية | C56: المديرية | D56: الجماعة | E56: المؤسسة1 | F56: الاسم 52 | G56: P121263 | H56: 1111111262 | I56: 560
A57: 53 | B57: الأكاديمية | C57: المديرية | D57: الجماعة | E57: المؤسسة1 | F57: الاسم 53 | G57: P121264 | H57: 1111111265 | I57: 360
A58: 54 | B58: الأكاديمية | C58: المديرية | D58: الجماعة | E58: المؤسسة1 | F58: الاسم 54 | G58: P121265 | H58: 1111111268 | I58: 780
A59: 55 | B59: الأكاديمية | C59: المديرية | D59: الجماعة | E59: المؤسسة1 | F59: الاسم 55 | G59: P121266 | H59: 1111111271 | I59: 420
A60: 56 | B60: الأكاديمية | C60: المديرية | D60: الجماعة | E60: المؤسسة1 | F60: الاسم 56 | G60: P121267 | H60: 1111111274 | I60: 420
A61: 57 | B61: الأكاديمية | C61: المديرية | D61: الجماعة | E61: المؤسسة1 | F61: الاسم 57 | G61: P121268 | H61: 1111111277 | I61: 300
A62: 58 | B62: الأكاديمية | C62: المديرية | D62: الجماعة | E62: المؤسسة1 | F62: الاسم 58 | G62: P121269 | H62: 1111111280 | I62: 300
A63: 59 | B63: الأكاديمية | C63: المديرية | D63: الجماعة | E63: المؤسسة1 | F63: الاسم 59 | G63: P121270 | H63: 1111111283 | I63: 240
A64: 60 | B64: الأكاديمية | C64: المديرية | D64: الجماعة | E64: المؤسسة1 | F64: الاسم 60 | G64: P121271 | H64: 1111111286 | I64: 420
A65: 61 | B65: الأكاديمية | C65: المديرية | D65: الجماعة | E65: المؤسسة1 | F65: الاسم 61 | G65: P121272 | H65: 1111111289 | I65: 180
A66: 62 | B66: الأكاديمية | C66: المديرية | D66: الجماعة | E66: المؤسسة1 | F66: الاسم 62 | G66: P121273 | H66: 1111111292 | I66: 480
A67: 63 | B67: الأكاديمية | C67: المديرية | D67: الجماعة | E67: المؤسسة1 | F67: الاسم 63 | G67: P121274 | H67: 1111111295 | I67: 420
A68: 64 | B68: =IFERROR(INDEX(INDIRECT(""&$P$1&"!$B11:$B1000"),MATCH($A68,INDIRECT(""&$P$2&"!$A11:$A1000"),0)),"") -> الأكاديمية | C68: المديرية | D68: الجماعة | E68: المؤسسة1 | F68: الاسم 64 | G68: P121275 | H68: 1111111298 | I68: 420
A69: 65 | B69: الأكاديمية | C69: =IFERROR(INDEX(INDIRECT(""&$P$1&"!$C11:$C1000"),MATCH($A69,INDIRECT(""&$P$2&"!$A11:$A1000"),0)),"") -> المديرية | D69: =IFERROR(INDEX(INDIRECT(""&$P$1&"!$D11:$D1000"),MATCH($A69,INDIRECT(""&$P$2&"!$A11:$A1000"),0)),"") -> الجماعة | E69: =IFERROR(INDEX(INDIRECT(""&$P$1&"!$E11:$E1000"),MATCH($A69,INDIRECT(""&$P$2&"!$A11:$A1000"),0)),"") -> المؤسسة1 | F69: =IFERROR(INDEX(INDIRECT(""&$P$1&"!$F11:$F1000"),MATCH($A69,INDIRECT(""&$P$2&"!$A11:$A1000"),0)),"") -> الاسم 65 | G69: =IFERROR(INDEX(INDIRECT(""&$P$1&"!$G11:$G1000"),MATCH($A69,INDIRECT(""&$P$2&"!$A11:$A1000"),0)),"") -> P121276 | H69: =IFERROR(INDEX(INDIRECT(""&$P$1&"!$H11:$H1000"),MATCH($A69,INDIRECT(""&$P$2&"!$A11:$A1000"),0)),"") -> 1111111301 | I69: =IFERROR(INDEX(INDIRECT(""&$P$1&"!$I11:$I1000"),MATCH($A69,INDIRECT(""&$P$2&"!$A11:$A1000"),0)),"") -> 540
A70: 66 | B70: الأكاديمية | C70: المديرية | D70: الجماعة | E70: المؤسسة1 | F70: الاسم 66 | G70: P121277 | H70: 1111111304 | I70: 660
A71: 67 | B71: الأكاديمية | C71: المديرية | D71: الجماعة | E71: المؤسسة1 | F71: الاسم 67 | G71: P121278 | H71: 1111111307 | I71: 840
A72: 68 | B72: الأكاديمية | C72: المديرية | D72: الجماعة | E72: المؤسسة1 | F72: الاسم 68 | G72: P121279 | H72: 1111111310 | I72: 420
A73: 69 | B73: الأكاديمية | C73: المديرية | D73: الجماعة | E73: المؤسسة1 | F73: الاسم 69 | G73: P121280 | H73: 1111111313 | I73: 480
A74: 70 | B74: الأكاديمية | C74: المديرية | D74: الجماعة | E74: المؤسسة1 | F74: الاسم 70 | G74: P121281 | H74: 1111111316 | I74: 660
A75: 71 | B75: الأكاديمية | C75: المديرية | D75: الجماعة | E75: المؤسسة1 | F75: الاسم 71 | G75: P121282 | H75: 1111111319 | I75: 180
A76: 72 | B76: الأكاديمية | C76: المديرية | D76: الجماعة | E76: المؤسسة1 | F76: الاسم 72 | G76: P121283 | H76: 1111111322 | I76: 420
A77: 73 | B77: الأكاديمية | C77: المديرية | D77: الجماعة | E77: المؤسسة1 | F77: الاسم 73 | G77: P121284 | H77: 1111111325 | I77: 1080
A78: 74 | B78: الأكاديمية | C78: المديرية | D78: الجماعة | E78: المؤسسة1 | F78: الاسم 74 | G78: P121285 | H78: 1111111328 | I78: 420
A79: 75 | B79: الأكاديمية | C79: المديرية | D79: الجماعة | E79: المؤسسة1 | F79: الاسم 75 | G79: P121286 | H79: 1111111331 | I79: 840
A80: 76 | B80: الأكاديمية | C80: المديرية | D80: الجماعة | E80: المؤسسة1 | F80: الاسم 76 | G80: P121287 | H80: 1111111334 | I80: 420
A81: 77 | B81: الأكاديمية | C81: المديرية | D81: الجماعة | E81: المؤسسة1 | F81: الاسم 77 | G81: P121288 | H81: 1111111337 | I81: 600
A82: 78 | B82: الأكاديمية | C82: المديرية | D82: الجماعة | E82: المؤسسة1 | F82: الاسم 78 | G82: P121289 | H82: 1111111340 | I82: 420
A83: 79 | B83: الأكاديمية | C83: المديرية | D83: الجماعة | E83: المؤسسة1 | F83: الاسم 79 | G83: P121290 | H83: 1111111343 | I83: 660
A84: 80 | B84: الأكاديمية | C84: المديرية | D84: الجماعة | E84: المؤسسة1 | F84: الاسم 80 | G84: P121291 | H84: 1111111346 | I84: 420
A85: 81 | B85: الأكاديمية | C85: المديرية | D85: الجماعة | E85: المؤسسة1 | F85: الاسم 81 | G85: P121292 | H85: 1111111349 | I85: 840
A86: 82 | B86: الأكاديمية | C86: المديرية | D86: الجماعة | E86: المؤسسة1 | F86: الاسم 82 | G86: P121293 | H86: 1111111352 | I86: 420
A87: 83 | B87: الأكاديمية | C87: المديرية | D87: الجماعة | E87: المؤسسة1 | F87: الاسم 83 | G87: P121294 | H87: 1111111355 | I87: 840
A88: 84 | B88: الأكاديمية | C88: المديرية | D88: الجماعة | E88: المؤسسة1 | F88: الاسم 84 | G88: P121295 | H88: 1111111358 | I88: 420
A89: 85 | B89: الأكاديمية | C89: المديرية | D89: الجماعة | E89: المؤسسة1 | F89: الاسم 85 | G89: P121296 | H89: 1111111361 | I89: 420
A90: 86 | B90: الأكاديمية | C90: المديرية | D90: الجماعة | E90: المؤسسة1 | F90: الاسم 86 | G90: P121297 | H90: 1111111364 | I90: 780
A91: 87 | B91: الأكاديمية | C91: المديرية | D91: الجماعة | E91: المؤسسة1 | F91: الاسم 87 | G91: P121298 | H91: 1111111367 | I91: 300
A92: 88 | B92: الأكاديمية | C92: المديرية | D92: الجماعة | E92: المؤسسة1 | F92: الاسم 88 | G92: P121299 | H92: 1111111370 | I92: 780
A93: 89 | B93: الأكاديمية | C93: المديرية | D93: الجماعة | E93: المؤسسة1 | F93: الاسم 89 | G93: P121300 | H93: 1111111373 | I93: 1080
A94: 90 | B94: الأكاديمية | C94: المديرية | D94: الجماعة | E94: المؤسسة1 | F94: الاسم 90 | G94: P121301 | H94: 1111111376 | I94: 1280
A95: 91 | B95: الأكاديمية | C95: المديرية | D95: الجماعة | E95: المؤسسة1 | F95: الاسم 91 | G95: P121302 | H95: 1111111379 | I95: 300
A96: 92 | B96: الأكاديمية | C96: المديرية | D96: الجماعة | E96: المؤسسة1 | F96: الاسم 92 | G96: P121303 | H96: 1111111382 | I96: 420
A97: 93 | B97: الأكاديمية | C97: المديرية | D97: الجماعة | E97: المؤسسة1 | F97: الاسم 93 | G97: P121304 | H97: 1111111385 | I97: 420
A98: 94 | B98: الأكاديمية | C98: المديرية | D98: الجماعة | E98: المؤسسة1 | F98: الاسم 94 | G98: P121305 | H98: 1111111388 | I98: 420
A99: 95 | B99: الأكاديمية | C99: المديرية | D99: الجماعة | E99: المؤسسة1 | F99: الاسم 95 | G99: P121306 | H99: 1111111391 | I99: 300
A100: 96 | B100: الأكاديمية | C100: المديرية | D100: الجماعة | E100: المؤسسة1 | F100: الاسم 96 | G100: P121307 | H100: 1111111394 | I100: 420
A101: 97 | B101: الأكاديمية | C101: المديرية | D101: الجماعة | E101: المؤسسة1 | F101: الاسم 97 | G101: P121308 | H101: 1111111397 | I101: 200
A102: 98 | B102: الأكاديمية | C102: المديرية | D102: الجماعة | E102: المؤسسة1 | F102: الاسم 98 | G102: P121309 | H102: 1111111400 | I102: 1020
A103: 99 | B103: الأكاديمية | C103: المديرية | D103: الجماعة | E103: المؤسسة1 | F103: الاسم 99 | G103: P121310 | H103: 1111111403 | I103: 540
A104: 100 | B104: الأكاديمية | C104: المديرية | D104: الجماعة | E104: المؤسسة1 | F104: الاسم 100 | G104: P121311 | H104: 1111111406 | I104: 660
A105: 101 | B105: الأكاديمية | C105: المديرية | D105: الجماعة | E105: المؤسسة1 | F105: الاسم 101 | G105: P121312 | H105: 1111111409 | I105: 840
A106: 102 | B106: الأكاديمية | C106: المديرية | D106: الجماعة | E106: المؤسسة1 | F106: الاسم 102 | G106: P121313 | H106: 1111111412 | I106: 300
A107: 103 | B107: الأكاديمية | C107: المديرية | D107: الجماعة | E107: المؤسسة1 | F107: الاسم 103 | G107: P121314 | H107: 1111111415 | I107: 840
A108: 104 | B108: الأكاديمية | C108: المديرية | D108: الجماعة | E108: المؤسسة1 | F108: الاسم 104 | G108: P121315 | H108: 1111111418 | I108: 720
A109: 105 | B109: الأكاديمية | C109: المديرية | D109: الجماعة | E109: المؤسسة1 | F109: الاسم 105 | G109: P121316 | H109: 1111111421 | I109: 600
A110: 106 | B110: الأكاديمية | C110: المديرية | D110: الجماعة | E110: المؤسسة1 | F110: الاسم 106 | G110: P121317 | H110: 1111111424 | I110: 300
A111: 107 | B111: الأكاديمية | C111: المديرية | D111: الجماعة | E111: المؤسسة1 | F111: الاسم 107 | G111: P121318 | H111: 1111111427 | I111: 180
A112: 108 | B112: الأكاديمية | C112: المديرية | D112: الجماعة | E112: المؤسسة1 | F112: الاسم 108 | G112: P121319 | H112: 1111111430 | I112: 240
A113: 109 | B113: الأكاديمية | C113: المديرية | D113: الجماعة | E113: المؤسسة1 | F113: الاسم 109 | G113: P121320 | H113: 1111111433 | I113: 360
A114: 110 | B114: الأكاديمية | C114: المديرية | D114: الجماعة | E114: المؤسسة1 | F114: الاسم 110 | G114: P121321 | H114: 1111111436 | I114: 720
A115: 111 | B115: الأكاديمية | C115: المديرية | D115: الجماعة | E115: المؤسسة1 | F115: الاسم 111 | G115: P121322 | H115: 1111111439 | I115: 180
A116: 112 | B116: الأكاديمية | C116: المديرية | D116: الجماعة | E116: المؤسسة1 | F116: الاسم 112 | G116: P121323 | H116: 1111111442 | I116: 800
A117: 113 | B117: الأكاديمية | C117: المديرية | D117: الجماعة | E117: المؤسسة1 | F117: الاسم 113 | G117: P121324 | H117: 1111111445 | I117: 420
A118: 114 | B118: الأكاديمية | C118: المديرية | D118: الجماعة | E118: المؤسسة1 | F118: الاسم 114 | G118: P121325 | H118: 1111111448 | I118: 660
A119: 115 | B119: الأكاديمية | C119: المديرية | D119: الجماعة | E119: المؤسسة1 | F119: الاسم 115 | G119: P121326 | H119: 1111111451 | I119: 960
A120: 116 | B120: الأكاديمية | C120: المديرية | D120: الجماعة | E120: المؤسسة1 | F120: الاسم 116 | G120: P121327 | H120: 1111111454 | I120: 1260
A121: 117 | B121: الأكاديمية | C121: المديرية | D121: الجماعة | E121: المؤسسة1 | F121: الاسم 117 | G121: P121328 | H121: 1111111457 | I121: 420
A122: 118 | B122: الأكاديمية | C122: المديرية | D122: الجماعة | E122: المؤسسة1 | F122: الاسم 118 | G122: P121329 | H122: 1111111460 | I122: 480
A123: 119 | B123: الأكاديمية | C123: المديرية | D123: الجماعة | E123: المؤسسة1 | F123: الاسم 119 | G123: P121330 | H123: 1111111463 | I123: 540
A124: 120 | B124: الأكاديمية | C124: المديرية | D124: الجماعة | E124: المؤسسة2 | F124: الاسم 120 | G124: P121331 | H124: 1111111466 | I124: 420
A125: 121 | B125: الأكاديمية | C125: المديرية | D125: الجماعة | E125: المؤسسة2 | F125: الاسم 121 | G125: P121332 | H125: 1111111469 | I125: 720
A126: 122 | B126: الأكاديمية | C126: المديرية | D126: الجماعة | E126: المؤسسة2 | F126: الاسم 122 | G126: P121333 | H126: 1111111472 | I126: 540
A127: 123 | B127: الأكاديمية | C127: المديرية | D127: الجماعة | E127: المؤسسة2 | F127: الاسم 123 | G127: P121334 | H127: 1111111475 | I127: 480
A128: 124 | B128: الأكاديمية | C128: المديرية | D128: الجماعة | E128: المؤسسة2 | F128: الاسم 124 | G128: P121335 | H128: 1111111478 | I128: 480
A129: 125 | B129: الأكاديمية | C129: المديرية | D129: الجماعة | E129: المؤسسة2 | F129: الاسم 125 | G129: P121336 | H129: 1111111481 | I129: 720
A130: 126 | B130: الأكاديمية | C130: المديرية | D130: الجماعة | E130: المؤسسة2 | F130: الاسم 126 | G130: P121337 | H130: 1111111484 | I130: 420
A131: 127 | B131: الأكاديمية | C131: المديرية | D131: الجماعة | E131: المؤسسة2 | F131: الاسم 127 | G131: P121338 | H131: 1111111487 | I131: 480
A132: 128 | B132: =IFERROR(INDEX(INDIRECT(""&$P$1&"!$B11:$B1000"),MATCH($A132,INDIRECT(""&$P$2&"!$A11:$A1000"),0)),"") -> الأكاديمية | C132: المديرية | D132: الجماعة | E132: المؤسسة2 | F132: الاسم 128 | G132: P121339 | H132: 1111111490 | I132: 480
A133: 129 | B133: الأكاديمية | C133: =IFERROR(INDEX(INDIRECT(""&$P$1&"!$C11:$C1000"),MATCH($A133,INDIRECT(""&$P$2&"!$A11:$A1000"),0)),"") -> المديرية | D133: =IFERROR(INDEX(INDIRECT(""&$P$1&"!$D11:$D1000"),MATCH($A133,INDIRECT(""&$P$2&"!$A11:$A1000"),0)),"") -> الجماعة | E133: =IFERROR(INDEX(INDIRECT(""&$P$1&"!$E11:$E1000"),MATCH($A133,INDIRECT(""&$P$2&"!$A11:$A1000"),0)),"") -> المؤسسة2 | F133: =IFERROR(INDEX(INDIRECT(""&$P$1&"!$F11:$F1000"),MATCH($A133,INDIRECT(""&$P$2&"!$A11:$A1000"),0)),"") -> الاسم 129 | G133: =IFERROR(INDEX(INDIRECT(""&$P$1&"!$G11:$G1000"),MATCH($A133,INDIRECT(""&$P$2&"!$A11:$A1000"),0)),"") -> P121340 | H133: =IFERROR(INDEX(INDIRECT(""&$P$1&"!$H11:$H1000"),MATCH($A133,INDIRECT(""&$P$2&"!$A11:$A1000"),0)),"") -> 1111111493 | I133: =IFERROR(INDEX(INDIRECT(""&$P$1&"!$I11:$I1000"),MATCH($A133,INDIRECT(""&$P$2&"!$A11:$A1000"),0)),"") -> 720
A134: 130 | B134: الأكاديمية | C134: المديرية | D134: الجماعة | E134: المؤسسة2 | F134: الاسم 130 | G134: P121341 | H134: 1111111496 | I134: 660
A135: 131 | B135: الأكاديمية | C135: المديرية | D135: الجماعة | E135: المؤسسة2 | F135: الاسم 131 | G135: P121342 | H135: 1111111499 | I135: 240
A136: 132 | B136: الأكاديمية | C136: المديرية | D136: الجماعة | E136: المؤسسة2 | F136: الاسم 132 | G136: P121343 | H136: 1111111502 | I136: 240
A137: 133 | B137: الأكاديمية | C137: المديرية | D137: الجماعة | E137: المؤسسة2 | F137: الاسم 133 | G137: P121344 | H137: 1111111505 | I137: 420
A138: 134 | B138: الأكاديمية | C138: المديرية | D138: الجماعة | E138: المؤسسة2 | F138: الاسم 134 | G138: P121345 | H138: 1111111508 | I138: 600
A139: 135 | B139: الأكاديمية | C139: المديرية | D139: الجماعة | E139: المؤسسة2 | F139: الاسم 135 | G139: P121346 | H139: 1111111511 | I139: 480
A140: 136 | B140: الأكاديمية | C140: المديرية | D140: الجماعة | E140: المؤسسة2 | F140: الاسم 136 | G140: P121347 | H140: 1111111514 | I140: 240
A141: 137 | B141: الأكاديمية | C141: المديرية | D141: الجماعة | E141: المؤسسة2 | F141: الاسم 137 | G141: P121348 | H141: 1111111517 | I141: 420
A142: 138 | B142: الأكاديمية | C142: المديرية | D142: الجماعة | E142: المؤسسة2 | F142: الاسم 138 | G142: P121349 | H142: 1111111520 | I142: 420
A143: 139 | B143: الأكاديمية | C143: المديرية | D143: الجماعة | E143: المؤسسة2 | F143: الاسم 139 | G143: P121350 | H143: 1111111523 | I143: 420
A144: 140 | B144: الأكاديمية | C144: المديرية | D144: الجماعة | E144: المؤسسة2 | F144: الاسم 140 | G144: P121351 | H144: 1111111526 | I144: 420
A145: 141 | B145: الأكاديمية | C145: المديرية | D145: الجماعة | E145: المؤسسة2 | F145: الاسم 141 | G145: P121352 | H145: 1111111529 | I145: 240
A146: 142 | B146: الأكاديمية | C146: المديرية | D146: الجماعة | E146: المؤسسة2 | F146: الاسم 142 | G146: P121353 | H146: 1111111532 | I146: 420
A147: 143 | B147: الأكاديمية | C147: المديرية | D147: الجماعة | E147: المؤسسة2 | F147: الاسم 143 | G147: P121354 | H147: 1111111535 | I147: 620
A148: 144 | B148: الأكاديمية | C148: المديرية | D148: الجماعة | E148: المؤسسة2 | F148: الاسم 144 | G148: P121355 | H148: 1111111538 | I148: 480
A149: 145 | B149: الأكاديمية | C149: المديرية | D149: الجماعة | E149: المؤسسة2 | F149: الاسم 145 | G149: P121356 | H149: 1111111541 | I149: 420
A150: 146 | B150: الأكاديمية | C150: المديرية | D150: الجماعة | E150: المؤسسة2 | F150: الاسم 146 | G150: P121357 | H150: 1111111544 | I150: 180
A151: 147 | B151: الأكاديمية | C151: المديرية | D151: الجماعة | E151: المؤسسة2 | F151: الاسم 147 | G151: P121358 | H151: 1111111547 | I151: 180
A152: 148 | B152: الأكاديمية | C152: المديرية | D152: الجماعة | E152: المؤسسة2 | F152: الاسم 148 | G152: P121359 | H152: 1111111550 | I152: 180
A153: 149 | B153: الأكاديمية | C153: المديرية | D153: الجماعة | E153: المؤسسة2 | F153: الاسم 149 | G153: P121360 | H153: 1111111553 | I153: 180
A154: 150 | B154: الأكاديمية | C154: المديرية | D154: الجماعة | E154: المؤسسة2 | F154: الاسم 150 | G154: P121361 | H154: 1111111556 | I154: 180
A155: 151 | B155: الأكاديمية | C155: المديرية | D155: الجماعة | E155: المؤسسة2 | F155: الاسم 151 | G155: P121362 | H155: 1111111559 | I155: 180
A156: 152 | B156: الأكاديمية | C156: المديرية | D156: الجماعة | E156: المؤسسة2 | F156: الاسم 152 | G156: P121363 | H156: 1111111562 | I156: 180
A157: 153 | B157: الأكاديمية | C157: المديرية | D157: الجماعة | E157: المؤسسة2 | F157: الاسم 153 | G157: P121364 | H157: 1111111565 | I157: 180
A158: 154 | B158: الأكاديمية | C158: المديرية | D158: الجماعة | E158: المؤسسة2 | F158: الاسم 154 | G158: P121365 | H158: 1111111568 | I158: 180
A159: 155 | B159: الأكاديمية | C159: المديرية | D159: الجماعة | E159: المؤسسة2 | F159: الاسم 155 | G159: P121366 | H159: 1111111571 | I159: 180
A160: 156 | B160: الأكاديمية | C160: المديرية | D160: الجماعة | E160: المؤسسة2 | F160: الاسم 156 | G160: P121367 | H160: 1111111574 | I160: 180
A161: 157 | B161: الأكاديمية | C161: المديرية | D161: الجماعة | E161: المؤسسة2 | F161: الاسم 157 | G161: P121368 | H161: 1111111577 | I161: 180
A162: 158 | B162: الأكاديمية | C162: المديرية | D162: الجماعة | E162: المؤسسة2 | F162: الاسم 158 | G162: P121369 | H162: 1111111580 | I162: 180
A163: 159 | B163: الأكاديمية | C163: المديرية | D163: الجماعة | E163: المؤسسة2 | F163: الاسم 159 | G163: P121370 | H163: 1111111583 | I163: 180
A164: 160 | B164: الأكاديمية | C164: المديرية | D164: الجماعة | E164: المؤسسة2 | F164: الاسم 160 | G164: P121371 | H164: 1111111586 | I164: 180
A165: 161 | B165: الأكاديمية | C165: المديرية | D165: الجماعة | E165: المؤسسة2 | F165: الاسم 161 | G165: P121372 | H165: 1111111589 | I165: 180
A166: 162 | B166: الأكاديمية | C166: المديرية | D166: الجماعة | E166: المؤسسة2 | F166: الاسم 162 | G166: P121373 | H166: 1111111592 | I166: 180
A167: 163 | B167: الأكاديمية | C167: المديرية | D167: الجماعة | E167: المؤسسة2 | F167: الاسم 163 | G167: P121374 | H167: 1111111595 | I167: 180
A168: 164 | B168: الأكاديمية | C168: المديرية | D168: الجماعة | E168: المؤسسة2 | F168: الاسم 164 | G168: P121375 | H168: 1111111598 | I168: 180
A169: 165 | B169: الأكاديمية | C169: المديرية | D169: الجماعة | E169: المؤسسة2 | F169: الاسم 165 | G169: P121376 | H169: 1111111601 | I169: 180
A170: 166 | B170: الأكاديمية | C170: المديرية | D170: الجماعة | E170: المؤسسة2 | F170: الاسم 166 | G170: P121377 | H170: 1111111604 | I170: 420
A171: 167 | B171: الأكاديمية | C171: المديرية | D171: الجماعة | E171: المؤسسة3 | F171: الاسم 167 | G171: P121378 | H171: 1111111607 | I171: 420
A172: 168 | B172: الأكاديمية | C172: المديرية | D172: الجماعة | E172: المؤسسة3 | F172: الاسم 168 | G172: P121379 | H172: 1111111610 | I172: 420
A173: 169 | B173: الأكاديمية | C173: المديرية | D173: الجماعة | E173: المؤسسة3 | F173: الاسم 169 | G173: P121380 | H173: 1111111613 | I173: 600
A174: 170 | B174: الأكاديمية | C174: المديرية | D174: الجماعة | E174: المؤسسة3 | F174: الاسم 170 | G174: P121381 | H174: 1111111616 | I174: 240
A175: 171 | B175: الأكاديمية | C175: المديرية | D175: الجماعة | E175: المؤسسة3 | F175: الاسم 171 | G175: P121382 | H175: 1111111619 | I175: 420
A176: 172 | B176: الأكاديمية | C176: المديرية | D176: الجماعة | E176: المؤسسة3 | F176: الاسم 172 | G176: P121383 | H176: 1111111622 | I176: 180
A177: 173 | B177: الأكاديمية | C177: المديرية | D177: الجماعة | E177: المؤسسة3 | F177: الاسم 173 | G177: P121384 | H177: 1111111625 | I177: 180
A178: 174 | B178: الأكاديمية | C178: المديرية | D178: الجماعة | E178: المؤسسة3 | F178: الاسم 174 | G178: P121385 | H178: 1111111628 | I178: 180
A179: 175 | B179: الأكاديمية | C179: المديرية | D179: الجماعة | E179: المؤسسة3 | F179: الاسم 175 | G179: P121386 | H179: 1111111631 | I179: 420
A180: 176 | B180: الأكاديمية | C180: المديرية | D180: الجماعة | E180: المؤسسة3 | F180: الاسم 176 | G180: P121387 | H180: 1111111634 | I180: 240
A181: 177 | B181: الأكاديمية | C181: المديرية | D181: الجماعة | E181: المؤسسة3 | F181: الاسم 177 | G181: P121388 | H181: 1111111637 | I181: 420
A182: 178 | B182: الأكاديمية | C182: المديرية | D182: الجماعة | E182: المؤسسة4 | F182: الاسم 178 | G182: P121389 | H182: 1111111640 | I182: 300
A183: 179 | B183: الأكاديمية | C183: المديرية | D183: الجماعة | E183: المؤسسة4 | F183: الاسم 179 | G183: P121390 | H183: 1111111643 | I183: 860
A184: 180 | B184: الأكاديمية | C184: المديرية | D184: الجماعة | E184: المؤسسة4 | F184: الاسم 180 | G184: P121391 | H184: 1111111646 | I184: 480
A185: 181 | B185: الأكاديمية | C185: المديرية | D185: الجماعة | E185: المؤسسة4 | F185: الاسم 181 | G185: P121392 | H185: 1111111649 | I185: 180
A186: 182 | B186: 0 | C186: 0 | D186: 0 | E186: 0 | F186: 0 | G186: 0 | H186: 0 | I186: 0
A187: 183 | B187: 0 | C187: 0 | D187: 0 | E187: 0 | F187: 0 | G187: 0 | H187: 0 | I187: 0
A188: 184 | B188: 0 | C188: 0 | D188: 0 | E188: 0 | F188: 0 | G188: 0 | H188: 0 | I188: 0
A189: 185 | B189: 0 | C189: 0 | D189: 0 | E189: 0 | F189: 0 | G189: 0 | H189: 0 | I189: 0
A190: 186 | B190: 0 | C190: 0 | D190: 0 | E190: 0 | F190: 0 | G190: 0 | H190: 0 | I190: 0
A191: 187 | B191: 0 | C191: 0 | D191: 0 | E191: 0 | F191: 0 | G191: 0 | H191: 0 | I191: 0
A192: 188 | B192: 0 | C192: 0 | D192: 0 | E192: 0 | F192: 0 | G192: 0 | H192: 0 | I192: 0
A193: 189 | B193: 0 | C193: 0 | D193: 0 | E193: 0 | F193: 0 | G193: 0 | H193: 0 | I193: 0
A194: 190 | B194: 0 | C194: 0 | D194: 0 | E194: 0 | F194: 0 | G194: 0 | H194: 0 | I194: 0
A195: 191 | B195: 0 | C195: 0 | D195: 0 | E195: 0 | F195: 0 | G195: 0 | H195: 0 | I195: 0
A196: 192 | B196: =IFERROR(INDEX(INDIRECT(""&$P$1&"!$B11:$B1000"),MATCH($A196,INDIRECT(""&$P$2&"!$A11:$A1000"),0)),"") -> 0 | C196: 0 | D196: 0 | E196: 0 | F196: 0 | G196: 0 | H196: 0 | I196: 0
A197: 193 | B197: 0 | C197: =IFERROR(INDEX(INDIRECT(""&$P$1&"!$C11:$C1000"),MATCH($A197,INDIRECT(""&$P$2&"!$A11:$A1000"),0)),"") -> 0 | D197: =IFERROR(INDEX(INDIRECT(""&$P$1&"!$D11:$D1000"),MATCH($A197,INDIRECT(""&$P$2&"!$A11:$A1000"),0)),"") -> 0 | E197: =IFERROR(INDEX(INDIRECT(""&$P$1&"!$E11:$E1000"),MATCH($A197,INDIRECT(""&$P$2&"!$A11:$A1000"),0)),"") -> 0 | F197: =IFERROR(INDEX(INDIRECT(""&$P$1&"!$F11:$F1000"),MATCH($A197,INDIRECT(""&$P$2&"!$A11:$A1000"),0)),"") -> 0 | G197: =IFERROR(INDEX(INDIRECT(""&$P$1&"!$G11:$G1000"),MATCH($A197,INDIRECT(""&$P$2&"!$A11:$A1000"),0)),"") -> 0 | H197: =IFERROR(INDEX(INDIRECT(""&$P$1&"!$H11:$H1000"),MATCH($A197,INDIRECT(""&$P$2&"!$A11:$A1000"),0)),"") -> 0 | I197: =IFERROR(INDEX(INDIRECT(""&$P$1&"!$I11:$I1000"),MATCH($A197,INDIRECT(""&$P$2&"!$A11:$A1000"),0)),"") -> 0
A198: 194 | B198: 0 | C198: 0 | D198: 0 | E198: 0 | F198: 0 | G198: 0 | H198: 0 | I198: 0
A199: 195 | B199: 0 | C199: 0 | D199: 0 | E199: 0 | F199: 0 | G199: 0 | H199: 0 | I199: 0
A200: 196 | B200: 0 | C200: 0 | D200: 0 | E200: 0 | F200: 0 | G200: 0 | H200: 0 | I200: 0
A201: 197 | B201: 0 | C201: 0 | D201: 0 | E201: 0 | F201: 0 | G201: 0 | H201: 0 | I201: 0
... 803 more rows

Sheet Liste_Filtree
Q1: Data
E2: لائحة الأسر المستفيدة من التحويل | Q2: Num
A4: ر ت | B4: =IFERROR(INDEX(INDIRECT(""&$Q$1&"!$B11:$B1000"),MATCH($A4,INDIRECT(""&$Q$2&"!$A11:$A1000"),0)),"") ->  | C4: المديرية الإقليمية | D4: الجماعة | E4: المؤسسة | F4: الاسم و النسب | G4: رقم البطاقة الوطنية | H4: رقم تيسير | I4: المبلغ بالدرهم | J4: si
A5: 1 | B5: =IFERROR(INDEX(INDIRECT(""&$Q$1&"!$B11:$B1000"),MATCH($A5,INDIRECT(""&$Q$2&"!$A11:$A1000"),0)),"") -> الأكاديمية | C5: =IFERROR(INDEX(INDIRECT(""&$Q$1&"!$C11:$C1000"),MATCH($A5,INDIRECT(""&$Q$2&"!$A11:$A1000"),0)),"") -> المديرية | D5: =IFERROR(INDEX(INDIRECT(""&$Q$1&"!$D11:$D1000"),MATCH($A5,INDIRECT(""&$Q$2&"!$A11:$A1000"),0)),"") -> الجماعة | E5: =IFERROR(INDEX(INDIRECT(""&$Q$1&"!$E11:$E1000"),MATCH($A5,INDIRECT(""&$Q$2&"!$A11:$A1000"),0)),"") -> المؤسسة1 | F5: =IFERROR(TRIM(INDEX(INDIRECT(""&$Q$1&"!$F11:$F1000"),MATCH($A5,INDIRECT(""&$Q$2&"!$A11:$A1000"),0))),"") -> الاسم 1 | G5: =IFERROR(INDEX(INDIRECT(""&$Q$1&"!$G11:$G1000"),MATCH($A5,INDIRECT(""&$Q$2&"!$A11:$A1000"),0)),"") -> P121212 | H5: =IFERROR(INDEX(INDIRECT(""&$Q$1&"!$H11:$H1000"),MATCH($A5,INDIRECT(""&$Q$2&"!$A11:$A1000"),0)),"") -> 1111111111 | I5: =IFERROR(INDEX(INDIRECT(""&$Q$1&"!$I11:$I1000"),MATCH($A5,INDIRECT(""&$Q$2&"!$A11:$A1000"),0)),"") -> 420 | J5: =IF($I5>0,1,0) -> 1
A6: 2 | B6: الأكاديمية | C6: المديرية | D6: الجماعة | E6: المؤسسة1 | F6: الاسم 2 | G6: P121213 | H6: 1111111112 | I6: 1080 | J6: 1
A7: 3 | B7: الأكاديمية | C7: المديرية | D7: الجماعة | E7: المؤسسة1 | F7: الاسم 3 | G7: P121214 | H7: 1111111115 | I7: 1120 | J7: 1
A8: 4 | B8: الأكاديمية | C8: المديرية | D8: الجماعة | E8: المؤسسة1 | F8: الاسم 4 | G8: P121215 | H8: 1111111118 | I8: 840 | J8: 1
A9: 5 | B9: الأكاديمية | C9: المديرية | D9: الجماعة | E9: المؤسسة1 | F9: الاسم 5 | G9: P121216 | H9: 1111111121 | I9: 420 | J9: 1
A10: 6 | B10: الأكاديمية | C10: المديرية | D10: الجماعة | E10: المؤسسة1 | F10: الاسم 6 | G10: P121217 | H10: 1111111124 | I10: 240 | J10: 1
A11: 7 | B11: الأكاديمية | C11: المديرية | D11: الجماعة | E11: المؤسسة1 | F11: الاسم 7 | G11: P121218 | H11: 1111111127 | I11: 480 | J11: 1
A12: 8 | B12: الأكاديمية | C12: المديرية | D12: الجماعة | E12: المؤسسة1 | F12: الاسم 8 | G12: P121219 | H12: 1111111130 | I12: 960 | J12: 1
A13: 9 | B13: الأكاديمية | C13: المديرية | D13: الجماعة | E13: المؤسسة1 | F13: الاسم 9 | G13: P121220 | H13: 1111111133 | I13: 660 | J13: 1
A14: 10 | B14: الأكاديمية | C14: المديرية | D14: الجماعة | E14: المؤسسة1 | F14: الاسم 10 | G14: P121221 | H14: 1111111136 | I14: 1080 | J14: 1
A15: 11 | B15: الأكاديمية | C15: المديرية | D15: الجماعة | E15: المؤسسة1 | F15: الاسم 11 | G15: P121222 | H15: 1111111139 | I15: 420 | J15: 1
A16: 12 | B16: الأكاديمية | C16: المديرية | D16: الجماعة | E16: المؤسسة1 | F16: الاسم 12 | G16: P121223 | H16: 1111111142 | I16: 240 | J16: 1
A17: 13 | B17: الأكاديمية | C17: المديرية | D17: الجماعة | E17: المؤسسة1 | F17: الاسم 13 | G17: P121224 | H17: 1111111145 | I17: 420 | J17: 1
A18: 14 | B18: الأكاديمية | C18: المديرية | D18: الجماعة | E18: المؤسسة1 | F18: الاسم 14 | G18: P121225 | H18: 1111111148 | I18: 420 | J18: 1
A19: 15 | B19: الأكاديمية | C19: المديرية | D19: الجماعة | E19: المؤسسة1 | F19: الاسم 15 | G19: P121226 | H19: 1111111151 | I19: 420 | J19: 1
A20: 16 | B20: الأكاديمية | C20: المديرية | D20: الجماعة | E20: المؤسسة1 | F20: الاسم 16 | G20: P121227 | H20: 1111111154 | I20: 420 | J20: 1
A21: 17 | B21: الأكاديمية | C21: المديرية | D21: الجماعة | E21: المؤسسة1 | F21: الاسم 17 | G21: P121228 | H21: 1111111157 | I21: 720 | J21: 1
A22: 18 | B22: الأكاديمية | C22: المديرية | D22: الجماعة | E22: المؤسسة1 | F22: الاسم 18 | G22: P121229 | H22: 1111111160 | I22: 1020 | J22: 1
A23: 19 | B23: الأكاديمية | C23: المديرية | D23: الجماعة | E23: المؤسسة1 | F23: الاسم 19 | G23: P121230 | H23: 1111111163 | I23: 420 | J23: 1
A24: 20 | B24: الأكاديمية | C24: المديرية | D24: الجماعة | E24: المؤسسة1 | F24: الاسم 20 | G24: P121231 | H24: 1111111166 | I24: 600 | J24: 1
A25: 21 | B25: الأكاديمية | C25: المديرية | D25: الجماعة | E25: المؤسسة1 | F25: الاسم 21 | G25: P121232 | H25: 1111111169 | I25: 840 | J25: 1
A26: 22 | B26: الأكاديمية | C26: المديرية | D26: الجماعة | E26: المؤسسة1 | F26: الاسم 22 | G26: P121233 | H26: 1111111172 | I26: 720 | J26: 1
A27: 23 | B27: الأكاديمية | C27: المديرية | D27: الجماعة | E27: المؤسسة1 | F27: الاسم 23 | G27: P121234 | H27: 1111111175 | I27: 420 | J27: 1
A28: 24 | B28: الأكاديمية | C28: المديرية | D28: الجماعة | E28: المؤسسة1 | F28: الاسم 24 | G28: P121235 | H28: 1111111178 | I28: 420 | J28: 1
A29: 25 | B29: الأكاديمية | C29: المديرية | D29: الجماعة | E29: المؤسسة1 | F29: الاسم 25 | G29: P121236 | H29: 1111111181 | I29: 240 | J29: 1
A30: 26 | B30: الأكاديمية | C30: المديرية | D30: الجماعة | E30: المؤسسة1 | F30: الاسم 26 | G30: P121237 | H30: 1111111184 | I30: 240 | J30: 1
A31: 27 | B31: الأكاديمية | C31: المديرية | D31: الجماعة | E31: المؤسسة1 | F31: الاسم 27 | G31: P121238 | H31: 1111111187 | I31: 420 | J31: 1
A32: 28 | B32: الأكاديمية | C32: المديرية | D32: الجماعة | E32: المؤسسة1 | F32: الاسم 28 | G32: P121239 | H32: 1111111190 | I32: 300 | J32: 1
A33: 29 | B33: الأكاديمية | C33: المديرية | D33: الجماعة | E33: المؤسسة1 | F33: الاسم 29 | G33: P121240 | H33: 1111111193 | I33: 300 | J33: 1
A34: 30 | B34: الأكاديمية | C34: المديرية | D34: الجماعة | E34: المؤسسة1 | F34: الاسم 30 | G34: P121241 | H34: 1111111196 | I34: 660 | J34: 1
A35: 31 | B35: الأكاديمية | C35: المديرية | D35: الجماعة | E35: المؤسسة1 | F35: الاسم 31 | G35: P121242 | H35: 1111111199 | I35: 420 | J35: 1
A36: 32 | B36: الأكاديمية | C36: المديرية | D36: الجماعة | E36: المؤسسة1 | F36: الاسم 32 | G36: P121243 | H36: 1111111202 | I36: 420 | J36: 1
A37: 33 | B37: الأكاديمية | C37: المديرية | D37: الجماعة | E37: المؤسسة1 | F37: =IFERROR(TRIM(INDEX(INDIRECT(""&$Q$1&"!$F11:$F1000"),MATCH($A37,INDIRECT(""&$Q$2&"!$A11:$A1000"),0))),"") -> الاسم 33 | G37: P121244 | H37: 1111111205 | I37: 420 | J37: 1
A38: 34 | B38: الأكاديمية | C38: المديرية | D38: الجماعة | E38: المؤسسة1 | F38: الاسم 34 | G38: P121245 | H38: 1111111208 | I38: 420 | J38: 1
A39: 35 | B39: الأكاديمية | C39: المديرية | D39: الجماعة | E39: المؤسسة1 | F39: الاسم 35 | G39: P121246 | H39: 1111111211 | I39: 300 | J39: 1
A40: 36 | B40: الأكاديمية | C40: المديرية | D40: الجماعة | E40: المؤسسة1 | F40: الاسم 36 | G40: P121247 | H40: 1111111214 | I40: 280 | J40: 1
A41: 37 | B41: الأكاديمية | C41: المديرية | D41: الجماعة | E41: المؤسسة1 | F41: الاسم 37 | G41: P121248 | H41: 1111111217 | I41: 420 | J41: 1
A42: 38 | B42: الأكاديمية | C42: المديرية | D42: الجماعة | E42: المؤسسة1 | F42: الاسم 38 | G42: P121249 | H42: 1111111220 | I42: 420 | J42: 1
A43: 39 | B43: الأكاديمية | C43: المديرية | D43: الجماعة | E43: المؤسسة1 | F43: الاسم 39 | G43: P121250 | H43: 1111111223 | I43: 600 | J43: 1
A44: 40 | B44: الأكاديمية | C44: المديرية | D44: الجماعة | E44: المؤسسة1 | F44: الاسم 40 | G44: P121251 | H44: 1111111226 | I44: 420 | J44: 1
A45: 41 | B45: الأكاديمية | C45: المديرية | D45: الجماعة | E45: المؤسسة1 | F45: الاسم 41 | G45: P121252 | H45: 1111111229 | I45: 420 | J45: 1
A46: 42 | B46: الأكاديمية | C46: المديرية | D46: الجماعة | E46: المؤسسة1 | F46: الاسم 42 | G46: P121253 | H46: 1111111232 | I46: 480 | J46: 1
A47: 43 | B47: الأكاديمية | C47: المديرية | D47: الجماعة | E47: المؤسسة1 | F47: الاسم 43 | G47: P121254 | H47: 1111111235 | I47: 420 | J47: 1
A48: 44 | B48: الأكاديمية | C48: المديرية | D48: الجماعة | E48: المؤسسة1 | F48: الاسم 44 | G48: P121255 | H48: 1111111238 | I48: 960 | J48: 1
A49: 45 | B49: الأكاديمية | C49: المديرية | D49: الجماعة | E49: المؤسسة1 | F49: الاسم 45 | G49: P121256 | H49: 1111111241 | I49: 720 | J49: 1
A50: 46 | B50: الأكاديمية | C50: المديرية | D50: الجماعة | E50: المؤسسة1 | F50: الاسم 46 | G50: P121257 | H50: 1111111244 | I50: 420 | J50: 1
A51: 47 | B51: الأكاديمية | C51: المديرية | D51: الجماعة | E51: المؤسسة1 | F51: الاسم 47 | G51: P121258 | H51: 1111111247 | I51: 320 | J51: 1
A52: 48 | B52: الأكاديمية | C52: المديرية | D52: الجماعة | E52: المؤسسة1 | F52: الاسم 48 | G52: P121259 | H52: 1111111250 | I52: 1200 | J52: 1
A53: 49 | B53: الأكاديمية | C53: المديرية | D53: الجماعة | E53: المؤسسة1 | F53: الاسم 49 | G53: P121260 | H53: 1111111253 | I53: 180 | J53: 1
A54: 50 | B54: الأكاديمية | C54: المديرية | D54: الجماعة | E54: المؤسسة1 | F54: الاسم 50 | G54: P121261 | H54: 1111111256 | I54: 420 | J54: 1
A55: 51 | B55: الأكاديمية | C55: المديرية | D55: الجماعة | E55: المؤسسة1 | F55: الاسم 51 | G55: P121262 | H55: 1111111259 | I55: 660 | J55: 1
A56: 52 | B56: الأكاديمية | C56: المديرية | D56: الجماعة | E56: المؤسسة1 | F56: الاسم 52 | G56: P121263 | H56: 1111111262 | I56: 560 | J56: 1
A57: 53 | B57: الأكاديمية | C57: المديرية | D57: الجماعة | E57: المؤسسة1 | F57: الاسم 53 | G57: P121264 | H57: 1111111265 | I57: 360 | J57: 1
A58: 54 | B58: الأكاديمية | C58: المديرية | D58: الجماعة | E58: المؤسسة1 | F58: الاسم 54 | G58: P121265 | H58: 1111111268 | I58: 780 | J58: 1
A59: 55 | B59: الأكاديمية | C59: المديرية | D59: الجماعة | E59: المؤسسة1 | F59: الاسم 55 | G59: P121266 | H59: 1111111271 | I59: 420 | J59: 1
A60: 56 | B60: الأكاديمية | C60: المديرية | D60: الجماعة | E60: المؤسسة1 | F60: الاسم 56 | G60: P121267 | H60: 1111111274 | I60: 420 | J60: 1
A61: 57 | B61: الأكاديمية | C61: المديرية | D61: الجماعة | E61: المؤسسة1 | F61: الاسم 57 | G61: P121268 | H61: 1111111277 | I61: 300 | J61: 1
A62: 58 | B62: الأكاديمية | C62: المديرية | D62: الجماعة | E62: المؤسسة1 | F62: الاسم 58 | G62: P121269 | H62: 1111111280 | I62: 300 | J62: 1
A63: 59 | B63: الأكاديمية | C63: المديرية | D63: الجماعة | E63: المؤسسة1 | F63: الاسم 59 | G63: P121270 | H63: 1111111283 | I63: 240 | J63: 1
A64: 60 | B64: الأكاديمية | C64: المديرية | D64: الجماعة | E64: المؤسسة1 | F64: الاسم 60 | G64: P121271 | H64: 1111111286 | I64: 420 | J64: 1
A65: 61 | B65: الأكاديمية | C65: المديرية | D65: الجماعة | E65: المؤسسة1 | F65: الاسم 61 | G65: P121272 | H65: 1111111289 | I65: 180 | J65: 1
A66: 62 | B66: الأكاديمية | C66: المديرية | D66: الجماعة | E66: المؤسسة1 | F66: الاسم 62 | G66: P121273 | H66: 1111111292 | I66: 480 | J66: 1
A67: 63 | B67: الأكاديمية | C67: المديرية | D67: الجماعة | E67: المؤسسة1 | F67: الاسم 63 | G67: P121274 | H67: 1111111295 | I67: 420 | J67: 1
A68: 64 | B68: الأكاديمية | C68: المديرية | D68: الجماعة | E68: المؤسسة1 | F68: الاسم 64 | G68: P121275 | H68: 1111111298 | I68: 420 | J68: 1
A69: 65 | B69: =IFERROR(INDEX(INDIRECT(""&$Q$1&"!$B11:$B1000"),MATCH($A69,INDIRECT(""&$Q$2&"!$A11:$A1000"),0)),"") -> الأكاديمية | C69: =IFERROR(INDEX(INDIRECT(""&$Q$1&"!$C11:$C1000"),MATCH($A69,INDIRECT(""&$Q$2&"!$A11:$A1000"),0)),"") -> المديرية | D69: =IFERROR(INDEX(INDIRECT(""&$Q$1&"!$D11:$D1000"),MATCH($A69,INDIRECT(""&$Q$2&"!$A11:$A1000"),0)),"") -> الجماعة | E69: =IFERROR(INDEX(INDIRECT(""&$Q$1&"!$E11:$E1000"),MATCH($A69,INDIRECT(""&$Q$2&"!$A11:$A1000"),0)),"") -> المؤسسة1 | F69: =IFERROR(TRIM(INDEX(INDIRECT(""&$Q$1&"!$F11:$F1000"),MATCH($A69,INDIRECT(""&$Q$2&"!$A11:$A1000"),0))),"") -> الاسم 65 | G69: =IFERROR(INDEX(INDIRECT(""&$Q$1&"!$G11:$G1000"),MATCH($A69,INDIRECT(""&$Q$2&"!$A11:$A1000"),0)),"") -> P121276 | H69: =IFERROR(INDEX(INDIRECT(""&$Q$1&"!$H11:$H1000"),MATCH($A69,INDIRECT(""&$Q$2&"!$A11:$A1000"),0)),"") -> 1111111301 | I69: =IFERROR(INDEX(INDIRECT(""&$Q$1&"!$I11:$I1000"),MATCH($A69,INDIRECT(""&$Q$2&"!$A11:$A1000"),0)),"") -> 540 | J69: =IF($I69>0,1,0) -> 1
A70: 66 | B70: الأكاديمية | C70: المديرية | D70: الجماعة | E70: المؤسسة1 | F70: الاسم 66 | G70: P121277 | H70: 1111111304 | I70: 660 | J70: 1
A71: 67 | B71: الأكاديمية | C71: المديرية | D71: الجماعة | E71: المؤسسة1 | F71: الاسم 67 | G71: P121278 | H71: 1111111307 | I71: 840 | J71: 1
A72: 68 | B72: الأكاديمية | C72: المديرية | D72: الجماعة | E72: المؤسسة1 | F72: الاسم 68 | G72: P121279 | H72: 1111111310 | I72: 420 | J72: 1
A73: 69 | B73: الأكاديمية | C73: المديرية | D73: الجماعة | E73: المؤسسة1 | F73: الاسم 69 | G73: P121280 | H73: 1111111313 | I73: 480 | J73: 1
A74: 70 | B74: الأكاديمية | C74: المديرية | D74: الجماعة | E74: المؤسسة1 | F74: الاسم 70 | G74: P121281 | H74: 1111111316 | I74: 660 | J74: 1
A75: 71 | B75: الأكاديمية | C75: المديرية | D75: الجماعة | E75: المؤسسة1 | F75: الاسم 71 | G75: P121282 | H75: 1111111319 | I75: 180 | J75: 1
A76: 72 | B76: الأكاديمية | C76: المديرية | D76: الجماعة | E76: المؤسسة1 | F76: الاسم 72 | G76: P121283 | H76: 1111111322 | I76: 420 | J76: 1
A77: 73 | B77: الأكاديمية | C77: المديرية | D77: الجماعة | E77: المؤسسة1 | F77: الاسم 73 | G77: P121284 | H77: 1111111325 | I77: 1080 | J77: 1
A78: 74 | B78: الأكاديمية | C78: المديرية | D78: الجماعة | E78: المؤسسة1 | F78: الاسم 74 | G78: P121285 | H78: 1111111328 | I78: 420 | J78: 1
A79: 75 | B79: الأكاديمية | C79: المديرية | D79: الجماعة | E79: المؤسسة1 | F79: الاسم 75 | G79: P121286 | H79: 1111111331 | I79: 840 | J79: 1
A80: 76 | B80: الأكاديمية | C80: المديرية | D80: الجماعة | E80: المؤسسة1 | F80: الاسم 76 | G80: P121287 | H80: 1111111334 | I80: 420 | J80: 1
A81: 77 | B81: الأكاديمية | C81: المديرية | D81: الجماعة | E81: المؤسسة1 | F81: الاسم 77 | G81: P121288 | H81: 1111111337 | I81: 600 | J81: 1
A82: 78 | B82: الأكاديمية | C82: المديرية | D82: الجماعة | E82: المؤسسة1 | F82: الاسم 78 | G82: P121289 | H82: 1111111340 | I82: 420 | J82: 1
A83: 79 | B83: الأكاديمية | C83: المديرية | D83: الجماعة | E83: المؤسسة1 | F83: الاسم 79 | G83: P121290 | H83: 1111111343 | I83: 660 | J83: 1
A84: 80 | B84: الأكاديمية | C84: المديرية | D84: الجماعة | E84: المؤسسة1 | F84: الاسم 80 | G84: P121291 | H84: 1111111346 | I84: 420 | J84: 1
A85: 182 | B85: 0 | C85: 0 | D85: 0 | E85: 0 | F85: =IFERROR(INDEX(INDIRECT(""&$Q$1&"!$F11:$F1000"),MATCH($A85,INDIRECT(""&$Q$2&"!$A11:$A1000"),0)),"") -> 0 | G85: 0 | H85: 0 | I85: 0 | J85: 0
A86: 183 | B86: 0 | C86: 0 | D86: 0 | E86: 0 | F86: 0 | G86: 0 | H86: 0 | I86: 0 | J86: 0
A87: 184 | B87: 0 | C87: 0 | D87: 0 | E87: 0 | F87: 0 | G87: 0 | H87: 0 | I87: 0 | J87: 0
A88: 185 | B88: 0 | C88: 0 | D88: 0 | E88: 0 | F88: 0 | G88: 0 | H88: 0 | I88: 0 | J88: 0
A89: 186 | B89: 0 | C89: 0 | D89: 0 | E89: 0 | F89: 0 | G89: 0 | H89: 0 | I89: 0 | J89: 0
A90: 187 | B90: 0 | C90: 0 | D90: 0 | E90: 0 | F90: 0 | G90: 0 | H90: 0 | I90: 0 | J90: 0
A91: 188 | B91: 0 | C91: 0 | D91: 0 | E91: 0 | F91: 0 | G91: 0 | H91: 0 | I91: 0 | J91: 0
A92: 189 | B92: 0 | C92: 0 | D92: 0 | E92: 0 | F92: 0 | G92: 0 | H92: 0 | I92: 0 | J92: 0
A93: 190 | B93: 0 | C93: 0 | D93: 0 | E93: 0 | F93: 0 | G93: 0 | H93: 0 | I93: 0 | J93: 0
A94: 191 | B94: 0 | C94: 0 | D94: 0 | E94: 0 | F94: 0 | G94: 0 | H94: 0 | I94: 0 | J94: 0
A95: 192 | B95: 0 | C95: 0 | D95: 0 | E95: 0 | F95: 0 | G95: 0 | H95: 0 | I95: 0 | J95: 0
A96: 193 | B96: 0 | C96: 0 | D96: 0 | E96: 0 | F96: 0 | G96: 0 | H96: 0 | I96: 0 | J96: 0
A97: 194 | B97: 0 | C97: 0 | D97: 0 | E97: 0 | F97: 0 | G97: 0 | H97: 0 | I97: 0 | J97: 0
A98: 195 | B98: 0 | C98: 0 | D98: 0 | E98: 0 | F98: 0 | G98: 0 | H98: 0 | I98: 0 | J98: 0
A99: 196 | B99: 0 | C99: 0 | D99: 0 | E99: 0 | F99: 0 | G99: 0 | H99: 0 | I99: 0 | J99: 0
A100: 197 | B100: 0 | C100: 0 | D100: 0 | E100: 0 | F100: 0 | G100: 0 | H100: 0 | I100: 0 | J100: 0
A101: 198 | B101: 0 | C101: 0 | D101: 0 | E101: 0 | F101: 0 | G101: 0 | H101: 0 | I101: 0 | J101: 0
A102: 199 | B102: 0 | C102: 0 | D102: 0 | E102: 0 | F102: 0 | G102: 0 | H102: 0 | I102: 0 | J102: 0
A103: 200 | B103: 0 | C103: 0 | D103: 0 | E103: 0 | F103: 0 | G103: 0 | H103: 0 | I103: 0 | J103: 0
A104: 201 | B104: 0 | C104: 0 | D104: 0 | E104: 0 | F104: 0 | G104: 0 | H104: 0 | I104: 0 | J104: 0
A105: 202 | B105: 0 | C105: 0 | D105: 0 | E105: 0 | F105: 0 | G105: 0 | H105: 0 | I105: 0 | J105: 0
A106: 203 | B106: 0 | C106: 0 | D106: 0 | E106: 0 | F106: 0 | G106: 0 | H106: 0 | I106: 0 | J106: 0
A107: 204 | B107: 0 | C107: 0 | D107: 0 | E107: 0 | F107: 0 | G107: 0 | H107: 0 | I107: 0 | J107: 0
A108: 205 | B108: 0 | C108: 0 | D108: 0 | E108: 0 | F108: 0 | G108: 0 | H108: 0 | I108: 0 | J108: 0
A109: 206 | B109: 0 | C109: 0 | D109: 0 | E109: 0 | F109: 0 | G109: 0 | H109: 0 | I109: 0 | J109: 0
A110: 207 | B110: 0 | C110: 0 | D110: 0 | E110: 0 | F110: 0 | G110: 0 | H110: 0 | I110: 0 | J110: 0
A111: 208 | B111: 0 | C111: 0 | D111: 0 | E111: 0 | F111: 0 | G111: 0 | H111: 0 | I111: 0 | J111: 0
A112: 209 | B112: 0 | C112: 0 | D112: 0 | E112: 0 | F112: 0 | G112: 0 | H112: 0 | I112: 0 | J112: 0
A113: 210 | B113: 0 | C113: 0 | D113: 0 | E113: 0 | F113: 0 | G113: 0 | H113: 0 | I113: 0 | J113: 0
A114: 211 | B114: 0 | C114: 0 | D114: 0 | E114: 0 | F114: 0 | G114: 0 | H114: 0 | I114: 0 | J114: 0
A115: 212 | B115: 0 | C115: 0 | D115: 0 | E115: 0 | F115: 0 | G115: 0 | H115: 0 | I115: 0 | J115: 0
A116: 213 | B116: 0 | C116: 0 | D116: 0 | E116: 0 | F116: 0 | G116: 0 | H116: 0 | I116: 0 | J116: 0
A117: 214 | B117: 0 | C117: 0 | D117: 0 | E117: 0 | F117: 0 | G117: 0 | H117: 0 | I117: 0 | J117: 0
A118: 215 | B118: 0 | C118: 0 | D118: 0 | E118: 0 | F118: 0 | G118: 0 | H118: 0 | I118: 0 | J118: 0
A119: 216 | B119: 0 | C119: 0 | D119: 0 | E119: 0 | F119: 0 | G119: 0 | H119: 0 | I119: 0 | J119: 0
A120: 217 | B120: 0 | C120: 0 | D120: 0 | E120: 0 | F120: 0 | G120: 0 | H120: 0 | I120: 0 | J120: 0
A121: 218 | B121: 0 | C121: 0 | D121: 0 | E121: 0 | F121: 0 | G121: 0 | H121: 0 | I121: 0 | J121: 0
A122: 219 | B122: 0 | C122: 0 | D122: 0 | E122: 0 | F122: 0 | G122: 0 | H122: 0 | I122: 0 | J122: 0
A123: 220 | B123: 0 | C123: 0 | D123: 0 | E123: 0 | F123: 0 | G123: 0 | H123: 0 | I123: 0 | J123: 0
A124: 221 | B124: 0 | C124: 0 | D124: 0 | E124: 0 | F124: 0 | G124: 0 | H124: 0 | I124: 0 | J124: 0
A125: 222 | B125: 0 | C125: 0 | D125: 0 | E125: 0 | F125: 0 | G125: 0 | H125: 0 | I125: 0 | J125: 0
A126: 223 | B126: 0 | C126: 0 | D126: 0 | E126: 0 | F126: 0 | G126: 0 | H126: 0 | I126: 0 | J126: 0
A127: 224 | B127: 0 | C127: 0 | D127: 0 | E127: 0 | F127: 0 | G127: 0 | H127: 0 | I127: 0 | J127: 0
A128: 225 | B128: 0 | C128: 0 | D128: 0 | E128: 0 | F128: 0 | G128: 0 | H128: 0 | I128: 0 | J128: 0
A129: 226 | B129: 0 | C129: 0 | D129: 0 | E129: 0 | F129: 0 | G129: 0 | H129: 0 | I129: 0 | J129: 0
A130: 227 | B130: 0 | C130: 0 | D130: 0 | E130: 0 | F130: 0 | G130: 0 | H130: 0 | I130: 0 | J130: 0
A131: 228 | B131: 0 | C131: 0 | D131: 0 | E131: 0 | F131: 0 | G131: 0 | H131: 0 | I131: 0 | J131: 0
A132: 229 | B132: 0 | C132: 0 | D132: 0 | E132: 0 | F132: 0 | G132: 0 | H132: 0 | I132: 0 | J132: 0
A133: 230 | B133: =IFERROR(INDEX(INDIRECT(""&$Q$1&"!$B11:$B1000"),MATCH($A133,INDIRECT(""&$Q$2&"!$A11:$A1000"),0)),"") -> 0 | C133: =IFERROR(INDEX(INDIRECT(""&$Q$1&"!$C11:$C1000"),MATCH($A133,INDIRECT(""&$Q$2&"!$A11:$A1000"),0)),"") -> 0 | D133: =IFERROR(INDEX(INDIRECT(""&$Q$1&"!$D11:$D1000"),MATCH($A133,INDIRECT(""&$Q$2&"!$A11:$A1000"),0)),"") -> 0 | E133: =IFERROR(INDEX(INDIRECT(""&$Q$1&"!$E11:$E1000"),MATCH($A133,INDIRECT(""&$Q$2&"!$A11:$A1000"),0)),"") -> 0 | F133: 0 | G133: =IFERROR(INDEX(INDIRECT(""&$Q$1&"!$G11:$G1000"),MATCH($A133,INDIRECT(""&$Q$2&"!$A11:$A1000"),0)),"") -> 0 | H133: =IFERROR(INDEX(INDIRECT(""&$Q$1&"!$H11:$H1000"),MATCH($A133,INDIRECT(""&$Q$2&"!$A11:$A1000"),0)),"") -> 0 | I133: =IFERROR(INDEX(INDIRECT(""&$Q$1&"!$I11:$I1000"),MATCH($A133,INDIRECT(""&$Q$2&"!$A11:$A1000"),0)),"") -> 0 | J133: =IF($I133>0,1,0) -> 0
A134: 231 | B134: 0 | C134: 0 | D134: 0 | E134: 0 | F134: 0 | G134: 0 | H134: 0 | I134: 0 | J134: 0
A135: 232 | B135: 0 | C135: 0 | D135: 0 | E135: 0 | F135: 0 | G135: 0 | H135: 0 | I135: 0 | J135: 0
A136: 233 | B136: 0 | C136: 0 | D136: 0 | E136: 0 | F136: 0 | G136: 0 | H136: 0 | I136: 0 | J136: 0
A137: 234 | B137: 0 | C137: 0 | D137: 0 | E137: 0 | F137: 0 | G137: 0 | H137: 0 | I137: 0 | J137: 0
A138: 235 | B138: 0 | C138: 0 | D138: 0 | E138: 0 | F138: 0 | G138: 0 | H138: 0 | I138: 0 | J138: 0
A139: 236 | B139: 0 | C139: 0 | D139: 0 | E139: 0 | F139: 0 | G139: 0 | H139: 0 | I139: 0 | J139: 0
A140: 237 | B140: 0 | C140: 0 | D140: 0 | E140: 0 | F140: 0 | G140: 0 | H140: 0 | I140: 0 | J140: 0
A141: 238 | B141: 0 | C141: 0 | D141: 0 | E141: 0 | F141: 0 | G141: 0 | H141: 0 | I141: 0 | J141: 0
A142: 239 | B142: 0 | C142: 0 | D142: 0 | E142: 0 | F142: 0 | G142: 0 | H142: 0 | I142: 0 | J142: 0
A143: 240 | B143: 0 | C143: 0 | D143: 0 | E143: 0 | F143: 0 | G143: 0 | H143: 0 | I143: 0 | J143: 0
A144: 241 | B144: 0 | C144: 0 | D144: 0 | E144: 0 | F144: 0 | G144: 0 | H144: 0 | I144: 0 | J144: 0
A145: 242 | B145: 0 | C145: 0 | D145: 0 | E145: 0 | F145: 0 | G145: 0 | H145: 0 | I145: 0 | J145: 0
A146: 243 | B146: 0 | C146: 0 | D146: 0 | E146: 0 | F146: 0 | G146: 0 | H146: 0 | I146: 0 | J146: 0
A147: 244 | B147: 0 | C147: 0 | D147: 0 | E147: 0 | F147: 0 | G147: 0 | H147: 0 | I147: 0 | J147: 0
A148: 245 | B148: 0 | C148: 0 | D148: 0 | E148: 0 | F148: 0 | G148: 0 | H148: 0 | I148: 0 | J148: 0
A149: 246 | B149: 0 | C149: 0 | D149: 0 | E149: 0 | F149: =IFERROR(INDEX(INDIRECT(""&$Q$1&"!$F11:$F1000"),MATCH($A149,INDIRECT(""&$Q$2&"!$A11:$A1000"),0)),"") -> 0 | G149: 0 | H149: 0 | I149: 0 | J149: 0
A150: 247 | B150: 0 | C150: 0 | D150: 0 | E150: 0 | F150: 0 | G150: 0 | H150: 0 | I150: 0 | J150: 0
A151: 248 | B151: 0 | C151: 0 | D151: 0 | E151: 0 | F151: 0 | G151: 0 | H151: 0 | I151: 0 | J151: 0
A152: 249 | B152: 0 | C152: 0 | D152: 0 | E152: 0 | F152: 0 | G152: 0 | H152: 0 | I152: 0 | J152: 0
A153: 250 | B153: 0 | C153: 0 | D153: 0 | E153: 0 | F153: 0 | G153: 0 | H153: 0 | I153: 0 | J153: 0
A154: 251 | B154: 0 | C154: 0 | D154: 0 | E154: 0 | F154: 0 | G154: 0 | H154: 0 | I154: 0 | J154: 0
A155: 252 | B155: 0 | C155: 0 | D155: 0 | E155: 0 | F155: 0 | G155: 0 | H155: 0 | I155: 0 | J155: 0
A156: 253 | B156: 0 | C156: 0 | D156: 0 | E156: 0 | F156: 0 | G156: 0 | H156: 0 | I156: 0 | J156: 0
A157: 254 | B157: 0 | C157: 0 | D157: 0 | E157: 0 | F157: 0 | G157: 0 | H157: 0 | I157: 0 | J157: 0
A158: 255 | B158: 0 | C158: 0 | D158: 0 | E158: 0 | F158: 0 | G158: 0 | H158: 0 | I158: 0 | J158: 0
A159: 256 | B159: 0 | C159: 0 | D159: 0 | E159: 0 | F159: 0 | G159: 0 | H159: 0 | I159: 0 | J159: 0
A160: 257 | B160: 0 | C160: 0 | D160: 0 | E160: 0 | F160: 0 | G160: 0 | H160: 0 | I160: 0 | J160: 0
A161: 258 | B161: 0 | C161: 0 | D161: 0 | E161: 0 | F161: 0 | G161: 0 | H161: 0 | I161: 0 | J161: 0
A162: 259 | B162: 0 | C162: 0 | D162: 0 | E162: 0 | F162: 0 | G162: 0 | H162: 0 | I162: 0 | J162: 0
A163: 260 | B163: 0 | C163: 0 | D163: 0 | E163: 0 | F163: 0 | G163: 0 | H163: 0 | I163: 0 | J163: 0
A164: 261 | B164: 0 | C164: 0 | D164: 0 | E164: 0 | F164: 0 | G164: 0 | H164: 0 | I164: 0 | J164: 0
A165: 262 | B165: 0 | C165: 0 | D165: 0 | E165: 0 | F165: 0 | G165: 0 | H165: 0 | I165: 0 | J165: 0
A166: 263 | B166: 0 | C166: 0 | D166: 0 | E166: 0 | F166: 0 | G166: 0 | H166: 0 | I166: 0 | J166: 0
A167: 264 | B167: 0 | C167: 0 | D167: 0 | E167: 0 | F167: 0 | G167: 0 | H167: 0 | I167: 0 | J167: 0
A168: 265 | B168: 0 | C168: 0 | D168: 0 | E168: 0 | F168: 0 | G168: 0 | H168: 0 | I168: 0 | J168: 0
A169: 266 | B169: 0 | C169: 0 | D169: 0 | E169: 0 | F169: 0 | G169: 0 | H169: 0 | I169: 0 | J169: 0
A170: 267 | B170: 0 | C170: 0 | D170: 0 | E170: 0 | F170: 0 | G170: 0 | H170: 0 | I170: 0 | J170: 0
A171: 268 | B171: 0 | C171: 0 | D171: 0 | E171: 0 | F171: 0 | G171: 0 | H171: 0 | I171: 0 | J171: 0
A172: 269 | B172: 0 | C172: 0 | D172: 0 | E172: 0 | F172: 0 | G172: 0 | H172: 0 | I172: 0 | J172: 0
A173: 270 | B173: 0 | C173: 0 | D173: 0 | E173: 0 | F173: 0 | G173: 0 | H173: 0 | I173: 0 | J173: 0
A174: 271 | B174: 0 | C174: 0 | D174: 0 | E174: 0 | F174: 0 | G174: 0 | H174: 0 | I174: 0 | J174: 0
A175: 272 | B175: 0 | C175: 0 | D175: 0 | E175: 0 | F175: 0 | G175: 0 | H175: 0 | I175: 0 | J175: 0
A176: 273 | B176: 0 | C176: 0 | D176: 0 | E176: 0 | F176: 0 | G176: 0 | H176: 0 | I176: 0 | J176: 0
A177: 274 | B177: 0 | C177: 0 | D177: 0 | E177: 0 | F177: 0 | G177: 0 | H177: 0 | I177: 0 | J177: 0
A178: 275 | B178: 0 | C178: 0 | D178: 0 | E178: 0 | F178: 0 | G178: 0 | H178: 0 | I178: 0 | J178: 0
A179: 276 | B179: 0 | C179: 0 | D179: 0 | E179: 0 | F179: 0 | G179: 0 | H179: 0 | I179: 0 | J179: 0
A180: 277 | B180: 0 | C180: 0 | D180: 0 | E180: 0 | F180: 0 | G180: 0 | H180: 0 | I180: 0 | J180: 0
A181: 278 | B181: 0 | C181: 0 | D181: 0 | E181: 0 | F181: 0 | G181: 0 | H181: 0 | I181: 0 | J181: 0
A182: 279 | B182: 0 | C182: 0 | D182: 0 | E182: 0 | F182: 0 | G182: 0 | H182: 0 | I182: 0 | J182: 0
A183: 280 | B183: 0 | C183: 0 | D183: 0 | E183: 0 | F183: 0 | G183: 0 | H183: 0 | I183: 0 | J183: 0
A184: 281 | B184: 0 | C184: 0 | D184: 0 | E184: 0 | F184: 0 | G184: 0 | H184: 0 | I184: 0 | J184: 0
A185: 282 | B185: 0 | C185: 0 | D185: 0 | E185: 0 | F185: 0 | G185: 0 | H185: 0 | I185: 0 | J185: 0
A186: 283 | B186: 0 | C186: 0 | D186: 0 | E186: 0 | F186: 0 | G186: 0 | H186: 0 | I186: 0 | J186: 0
A187: 284 | B187: 0 | C187: 0 | D187: 0 | E187: 0 | F187: 0 | G187: 0 | H187: 0 | I187: 0 | J187: 0
A188: 285 | B188: 0 | C188: 0 | D188: 0 | E188: 0 | F188: 0 | G188: 0 | H188: 0 | I188: 0 | J188: 0
A189: 286 | B189: 0 | C189: 0 | D189: 0 | E189: 0 | F189: 0 | G189: 0 | H189: 0 | I189: 0 | J189: 0
A190: 287 | B190: 0 | C190: 0 | D190: 0 | E190: 0 | F190: 0 | G190: 0 | H190: 0 | I190: 0 | J190: 0
A191: 288 | B191: 0 | C191: 0 | D191: 0 | E191: 0 | F191: 0 | G191: 0 | H191: 0 | I191: 0 | J191: 0
A192: 289 | B192: 0 | C192: 0 | D192: 0 | E192: 0 | F192: 0 | G192: 0 | H192: 0 | I192: 0 | J192: 0
A193: 290 | B193: 0 | C193: 0 | D193: 0 | E193: 0 | F193: 0 | G193: 0 | H193: 0 | I193: 0 | J193: 0
A194: 291 | B194: 0 | C194: 0 | D194: 0 | E194: 0 | F194: 0 | G194: 0 | H194: 0 | I194: 0 | J194: 0
A195: 292 | B195: 0 | C195: 0 | D195: 0 | E195: 0 | F195: 0 | G195: 0 | H195: 0 | I195: 0 | J195: 0
A196: 293 | B196: 0 | C196: 0 | D196: 0 | E196: 0 | F196: 0 | G196: 0 | H196: 0 | I196: 0 | J196: 0
A197: 294 | B197: =IFERROR(INDEX(INDIRECT(""&$Q$1&"!$B11:$B1000"),MATCH($A197,INDIRECT(""&$Q$2&"!$A11:$A1000"),0)),"") -> 0 | C197: =IFERROR(INDEX(INDIRECT(""&$Q$1&"!$C11:$C1000"),MATCH($A197,INDIRECT(""&$Q$2&"!$A11:$A1000"),0)),"") -> 0 | D197: =IFERROR(INDEX(INDIRECT(""&$Q$1&"!$D11:$D1000"),MATCH($A197,INDIRECT(""&$Q$2&"!$A11:$A1000"),0)),"") -> 0 | E197: =IFERROR(INDEX(INDIRECT(""&$Q$1&"!$E11:$E1000"),MATCH($A197,INDIRECT(""&$Q$2&"!$A11:$A1000"),0)),"") -> 0 | F197: 0 | G197: =IFERROR(INDEX(INDIRECT(""&$Q$1&"!$G11:$G1000"),MATCH($A197,INDIRECT(""&$Q$2&"!$A11:$A1000"),0)),"") -> 0 | H197: =IFERROR(INDEX(INDIRECT(""&$Q$1&"!$H11:$H1000"),MATCH($A197,INDIRECT(""&$Q$2&"!$A11:$A1000"),0)),"") -> 0 | I197: =IFERROR(INDEX(INDIRECT(""&$Q$1&"!$I11:$I1000"),MATCH($A197,INDIRECT(""&$Q$2&"!$A11:$A1000"),0)),"") -> 0 | J197: =IF($I197>0,1,0) -> 0
A198: 295 | B198: 0 | C198: 0 | D198: 0 | E198: 0 | F198: 0 | G198: 0 | H198: 0 | I198: 0 | J198: 0
A199: 296 | B199: 0 | C199: 0 | D199: 0 | E199: 0 | F199: 0 | G199: 0 | H199: 0 | I199: 0 | J199: 0
A200: 297 | B200: 0 | C200: 0 | D200: 0 | E200: 0 | F200: 0 | G200: 0 | H200: 0 | I200: 0 | J200: 0
A201: 298 | B201: 0 | C201: 0 | D201: 0 | E201: 0 | F201: 0 | G201: 0 | H201: 0 | I201: 0 | J201: 0
... 793 more rows

Sheet Recus
T1: عدد صفحات اللائحة | U1: =Recus_All!$O$9 -> 31 | X1: صفحات متفرقة
B2: =IF($R$3<=0,"",$R$3) -> 1 | H2: =IF($R$3<=0,"",$R$3+1) -> 2 | R2: Liste
R3: 1 | W3: =IF(X3="","",MAX(W2:W2)+1) -> 1 | X3: 1
W4: =IF(X4="","",MAX(W3:W3)+1) -> 2 | X4: 2
B5: برنامج " تيسير" | H5: برنامج " تيسير" | O5: الصفحة : | P5: =IFERROR(INDEX(Num!$A:$A,MATCH(Recus!$R$3,Num!$B:$B,0)),"0") -> 1 | W5: 3 | X5: 10
C6: المؤسسة التعليمية: | D6: =IFERROR(INDEX(INDIRECT(""&$R$2&"!$E5:$E1000"),MATCH($B2,INDIRECT(""&$R$2&"!$A5:$A1000"),0)),"") -> المؤسسة1 | I6: المؤسسة التعليمية: | J6: =IFERROR(INDEX(INDIRECT(""&$R$2&"!$E5:$E1000"),MATCH($H2,INDIRECT(""&$R$2&"!$A5:$A1000"),0)),"") -> المؤسسة1 | W6: 4 | X6: 15
C7: اسم ونسب المستفيد: | D7: =IFERROR(INDEX(INDIRECT(""&$R$2&"!$F5:$F1000"),MATCH($B2,INDIRECT(""&$R$2&"!$A5:$A1000"),0)),"") -> الاسم 1 | I7: اسم ونسب المستفيد: | J7: =IFERROR(INDEX(INDIRECT(""&$R$2&"!$F5:$F1000"),MATCH($H2,INDIRECT(""&$R$2&"!$A5:$A1000"),0)),"") -> الاسم 2 | N7: اضغط هنا | S7: قم بالضغط على الأسهم فقط للتنقل بين الصفحات ثم طباعتها
C8: رقم ب ت و: | D8: =IFERROR(INDEX(INDIRECT(""&$R$2&"!$G5:$G1000"),MATCH($B2,INDIRECT(""&$R$2&"!$A5:$A1000"),0)),"") -> P121212 | I8: رقم ب ت و: | J8: =IFERROR(INDEX(INDIRECT(""&$R$2&"!$G5:$G1000"),MATCH($H2,INDIRECT(""&$R$2&"!$A5:$A1000"),0)),"") -> P121213
B9: اليوم المخصص لاستخلاص المنحة: | D9: =IF(B2="","",Home!$H$15) -> 2021-12-17 | H9: اليوم المخصص لاستخلاص المنحة: | J9: =IF(H2="","",Home!$H$15) -> 2021-12-17
B10: المبلغ: | D10: =IFERROR(INDEX(INDIRECT(""&$R$2&"!$I5:$I1000"),MATCH($B2,INDIRECT(""&$R$2&"!$A5:$A1000"),0))&" درهم","") -> 420 درهم | H10: المبلغ: | J10: =IFERROR(INDEX(INDIRECT(""&$R$2&"!$I5:$I1000"),MATCH($H2,INDIRECT(""&$R$2&"!$A5:$A1000"),0))&" درهم","") -> 1080 درهم
B11: إمضاء وتوقيع السيد المدير: | H11: إمضاء وتوقيع السيد المدير:
O12: من | P12: إلى
B13: =IF($R$3<=0,"",$R$3+2) -> 3 | H13: =IF($R$3<=0,"",$R$3+3) -> 4 | O13: 1 | P13: 32
B16: برنامج " تيسير" | H16: برنامج " تيسير"
C17: المؤسسة التعليمية: | D17: =IFERROR(INDEX(INDIRECT(""&$R$2&"!$E5:$E1000"),MATCH($B13,INDIRECT(""&$R$2&"!$A5:$A1000"),0)),"") -> المؤسسة1 | I17: المؤسسة التعليمية: | J17: =IFERROR(INDEX(INDIRECT(""&$R$2&"!$E5:$E1000"),MATCH($H13,INDIRECT(""&$R$2&"!$A5:$A1000"),0)),"") -> المؤسسة1
C18: اسم ونسب المستفيد: | D18: =IFERROR(INDEX(INDIRECT(""&$R$2&"!$F5:$F1000"),MATCH($B13,INDIRECT(""&$R$2&"!$A5:$A1000"),0)),"") -> الاسم 3 | I18: اسم ونسب المستفيد: | J18: =IFERROR(INDEX(INDIRECT(""&$R$2&"!$F5:$F1000"),MATCH($H13,INDIRECT(""&$R$2&"!$A5:$A1000"),0)),"") -> الاسم 4
C19: رقم ب ت و: | D19: =IFERROR(INDEX(INDIRECT(""&$R$2&"!$G5:$G1000"),MATCH($B13,INDIRECT(""&$R$2&"!$A5:$A1000"),0)),"") -> P121214 | I19: رقم ب ت و: | J19: =IFERROR(INDEX(INDIRECT(""&$R$2&"!$G5:$G1000"),MATCH($H13,INDIRECT(""&$R$2&"!$A5:$A1000"),0)),"") -> P121215
B20: اليوم المخصص لاستخلاص المنحة: | D20: =IF(B13="","",Home!$H$15) -> 2021-12-17 | H20: اليوم المخصص لاستخلاص المنحة: | J20: =IF(H13="","",Home!$H$15) -> 2021-12-17
B21: المبلغ: | D21: =IFERROR(INDEX(INDIRECT(""&$R$2&"!$I5:$I1000"),MATCH($B13,INDIRECT(""&$R$2&"!$A5:$A1000"),0))&" درهم","") -> 1120 درهم | H21: المبلغ: | J21: =IFERROR(INDEX(INDIRECT(""&$R$2&"!$I5:$I1000"),MATCH($H13,INDIRECT(""&$R$2&"!$A5:$A1000"),0))&" درهم","") -> 840 درهم
B22: إمضاء وتوقيع السيد المدير: | H22: إمضاء وتوقيع السيد المدير:
B24: =IF($R$3<=0,"",$R$3+4) -> 5 | H24: =IF($R$3<=0,"",$R$3+5) -> 6
B27: برنامج " تيسير" | H27: برنامج " تيسير"
C28: المؤسسة التعليمية: | D28: =IFERROR(INDEX(INDIRECT(""&$R$2&"!$E5:$E1000"),MATCH($B24,INDIRECT(""&$R$2&"!$A5:$A1000"),0)),"") -> المؤسسة1 | I28: المؤسسة التعليمية: | J28: =IFERROR(INDEX(INDIRECT(""&$R$2&"!$E5:$E1000"),MATCH($H24,INDIRECT(""&$R$2&"!$A5:$A1000"),0)),"") -> المؤسسة1
C29: اسم ونسب المستفيد: | D29: =IFERROR(INDEX(INDIRECT(""&$R$2&"!$F5:$F1000"),MATCH($B24,INDIRECT(""&$R$2&"!$A5:$A1000"),0)),"") -> الاسم 5 | I29: اسم ونسب المستفيد: | J29: =IFERROR(INDEX(INDIRECT(""&$R$2&"!$F5:$F1000"),MATCH($H24,INDIRECT(""&$R$2&"!$A5:$A1000"),0)),"") -> الاسم 6
C30: رقم ب ت و: | D30: =IFERROR(INDEX(INDIRECT(""&$R$2&"!$G5:$G1000"),MATCH($B24,INDIRECT(""&$R$2&"!$A5:$A1000"),0)),"") -> P121216 | I30: رقم ب ت و: | J30: =IFERROR(INDEX(INDIRECT(""&$R$2&"!$G5:$G1000"),MATCH($H24,INDIRECT(""&$R$2&"!$A5:$A1000"),0)),"") -> P121217
B31: اليوم المخصص لاستخلاص المنحة: | D31: =IF(B24="","",Home!$H$15) -> 2021-12-17 | H31: اليوم المخصص لاستخلاص المنحة: | J31: =IF(H24="","",Home!$H$15) -> 2021-12-17
B32: المبلغ: | D32: =IFERROR(INDEX(INDIRECT(""&$R$2&"!$I5:$I1000"),MATCH($B24,INDIRECT(""&$R$2&"!$A5:$A1000"),0))&" درهم","") -> 420 درهم | H32: المبلغ: | J32: =IFERROR(INDEX(INDIRECT(""&$R$2&"!$I5:$I1000"),MATCH($H24,INDIRECT(""&$R$2&"!$A5:$A1000"),0))&" درهم","") -> 240 درهم
B33: إمضاء وتوقيع السيد المدير: | H33: إمضاء وتوقيع السيد المدير:

Sheet Recus_All
B1: 1 | H1: 2 | Q1: Liste
Q2: =COUNTA(Liste!$B$5:$B$1004)-COUNTIF((Liste!$B$5:$B$1004),0)-COUNTBLANK(Liste!$B$5:$B$1004) -> 181
B4: برنامج " تيسير" | H4: برنامج " تيسير" | R4: لا تحتاج للنزول إلى الأسفل لأن عدد الوصولات يفوق 900 ولن يتم طباعة الفارغة منها
C5: المؤسسة التعليمية: | D5: =IFERROR(INDEX(INDIRECT(""&$Q$1&"!$E5:$E1000"),MATCH($B1,INDIRECT(""&$Q$1&"!$A5:$A1000"),0)),"") -> المؤسسة1 | I5: المؤسسة التعليمية: | J5: =IFERROR(INDEX(INDIRECT(""&$Q$1&"!$E5:$E1000"),MATCH($H1,INDIRECT(""&$Q$1&"!$A5:$A1000"),0)),"") -> المؤسسة1 | N5: العملية الأولى:
C6: اسم ونسب المستفيد: | D6: =IFERROR(INDEX(INDIRECT(""&$Q$1&"!$F5:$F1000"),MATCH($B1,INDIRECT(""&$Q$1&"!$A5:$A1000"),0)),"") -> الاسم 1 | I6: اسم ونسب المستفيد: | J6: =IFERROR(INDEX(INDIRECT(""&$Q$1&"!$F5:$F1000"),MATCH($H1,INDIRECT(""&$Q$1&"!$A5:$A1000"),0)),"") -> الاسم 2 | R6: المرجو انتظار الإكسيل لإتمام العملية في حالة البطء
C7: رقم ب ت و: | D7: =IFERROR(INDEX(INDIRECT(""&$Q$1&"!$G5:$G1000"),MATCH($B1,INDIRECT(""&$Q$1&"!$A5:$A1000"),0)),"") -> P121212 | I7: رقم ب ت و: | J7: =IFERROR(INDEX(INDIRECT(""&$Q$1&"!$G5:$G1000"),MATCH($H1,INDIRECT(""&$Q$1&"!$A5:$A1000"),0)),"") -> P121213
B8: اليوم المخصص لاستخلاص المنحة: | D8: =Home!$H$15 -> 2021-12-17 | H8: اليوم المخصص لاستخلاص المنحة: | J8: =Home!$H$15 -> 2021-12-17 | N8: عدد الصفحات التي سيتم طباعتها:
B9: المبلغ: | D9: =IFERROR(INDEX(INDIRECT(""&$Q$1&"!$I5:$I1000"),MATCH($B1,INDIRECT(""&$Q$1&"!$A5:$A1000"),0))&" درهم","") -> 420 درهم | I9: المبلغ: | J9: =IFERROR(INDEX(INDIRECT(""&$Q$1&"!$I5:$I1000"),MATCH($H1,INDIRECT(""&$Q$1&"!$A5:$A1000"),0))&" درهم","") -> 1080 درهم | O9: =ROUNDUP($Q$2/6,0) -> 31 | R9: يقوم التطبيق بتحديد أوتوماتيكيا عدد الصفحات اللازم طباعتها
B10: امضاء وتوقيع السيد المدير: | H10: امضاء وتوقيع السيد المدير:
B12: =OFFSET($B12,-11,0)+2 -> 3 | H12: =OFFSET($H12,-11,0)+2 -> 4
B15: برنامج " تيسير" | H15: برنامج " تيسير"
C16: المؤسسة التعليمية: | D16: =IFERROR(INDEX(INDIRECT(""&$Q$1&"!$E5:$E1000"),MATCH($B12,INDIRECT(""&$Q$1&"!$A5:$A1000"),0)),"") -> المؤسسة1 | I16: المؤسسة التعليمية: | J16: =IFERROR(INDEX(INDIRECT(""&$Q$1&"!$E5:$E1000"),MATCH($H12,INDIRECT(""&$Q$1&"!$A5:$A1000"),0)),"") -> المؤسسة1
C17: اسم ونسب المستفيد: | D17: =IFERROR(INDEX(INDIRECT(""&$Q$1&"!$F5:$F1000"),MATCH($B12,INDIRECT(""&$Q$1&"!$A5:$A1000"),0)),"") -> الاسم 3 | I17: اسم ونسب المستفيد: | J17: =IFERROR(INDEX(INDIRECT(""&$Q$1&"!$F5:$F1000"),MATCH($H12,INDIRECT(""&$Q$1&"!$A5:$A1000"),0)),"") -> الاسم 4
C18: رقم ب ت و: | D18: =IFERROR(INDEX(INDIRECT(""&$Q$1&"!$G5:$G1000"),MATCH($B12,INDIRECT(""&$Q$1&"!$A5:$A1000"),0)),"") -> P121214 | I18: رقم ب ت و: | J18: =IFERROR(INDEX(INDIRECT(""&$Q$1&"!$G5:$G1000"),MATCH($H12,INDIRECT(""&$Q$1&"!$A5:$A1000"),0)),"") -> P121215
B19: اليوم المخصص لاستخلاص المنحة: | D19: =Home!$H$15 -> 2021-12-17 | H19: اليوم المخصص لاستخلاص المنحة: | J19: =Home!$H$15 -> 2021-12-17
B20: المبلغ: | D20: =IFERROR(INDEX(INDIRECT(""&$Q$1&"!$I5:$I1000"),MATCH($B12,INDIRECT(""&$Q$1&"!$A5:$A1000"),0))&" درهم","") -> 1120 درهم | I20: المبلغ: | J20: =IFERROR(INDEX(INDIRECT(""&$Q$1&"!$I5:$I1000"),MATCH($H12,INDIRECT(""&$Q$1&"!$A5:$A1000"),0))&" درهم","") -> 840 درهم
B21: امضاء وتوقيع السيد المدير: | H21: امضاء وتوقيع السيد المدير:
B23: =OFFSET($B23,-11,0)+2 -> 5 | H23: =OFFSET($H23,-11,0)+2 -> 6
B26: برنامج " تيسير" | H26: برنامج " تيسير"
C27: المؤسسة التعليمية: | D27: =IFERROR(INDEX(INDIRECT(""&$Q$1&"!$E5:$E1000"),MATCH($B23,INDIRECT(""&$Q$1&"!$A5:$A1000"),0)),"") -> المؤسسة1 | I27: المؤسسة التعليمية: | J27: =IFERROR(INDEX(INDIRECT(""&$Q$1&"!$E5:$E1000"),MATCH($H23,INDIRECT(""&$Q$1&"!$A5:$A1000"),0)),"") -> المؤسسة1
C28: اسم ونسب المستفيد: | D28: =IFERROR(INDEX(INDIRECT(""&$Q$1&"!$F5:$F1000"),MATCH($B23,INDIRECT(""&$Q$1&"!$A5:$A1000"),0)),"") -> الاسم 5 | I28: اسم ونسب المستفيد: | J28: =IFERROR(INDEX(INDIRECT(""&$Q$1&"!$F5:$F1000"),MATCH($H23,INDIRECT(""&$Q$1&"!$A5:$A1000"),0)),"") -> الاسم 6
C29: رقم ب ت و: | D29: =IFERROR(INDEX(INDIRECT(""&$Q$1&"!$G5:$G1000"),MATCH($B23,INDIRECT(""&$Q$1&"!$A5:$A1000"),0)),"") -> P121216 | I29: رقم ب ت و: | J29: =IFERROR(INDEX(INDIRECT(""&$Q$1&"!$G5:$G1000"),MATCH($H23,INDIRECT(""&$Q$1&"!$A5:$A1000"),0)),"") -> P121217
B30: اليوم المخصص لاستخلاص المنحة: | D30: =Home!$H$15 -> 2021-12-17 | H30: اليوم المخصص لاستخلاص المنحة: | J30: =Home!$H$15 -> 2021-12-17
B31: المبلغ: | D31: =IFERROR(INDEX(INDIRECT(""&$Q$1&"!$I5:$I1000"),MATCH($B23,INDIRECT(""&$Q$1&"!$A5:$A1000"),0))&" درهم","") -> 420 درهم | I31: المبلغ: | J31: =IFERROR(INDEX(INDIRECT(""&$Q$1&"!$I5:$I1000"),MATCH($H23,INDIRECT(""&$Q$1&"!$A5:$A1000"),0))&" درهم","") -> 240 درهم
B32: امضاء وتوقيع السيد المدير: | H32: امضاء وتوقيع السيد المدير:
A33: =IF($D7=0," ","SDP") -> SDP
B34: =OFFSET($B34,-11,0)+2 -> 7 | H34: =OFFSET($H34,-11,0)+2 -> 8
B37: برنامج " تيسير" | H37: برنامج " تيسير"
C38: المؤسسة التعليمية: | D38: =IFERROR(INDEX(INDIRECT(""&$Q$1&"!$E5:$E1000"),MATCH($B34,INDIRECT(""&$Q$1&"!$A5:$A1000"),0)),"") -> المؤسسة1 | I38: المؤسسة التعليمية: | J38: =IFERROR(INDEX(INDIRECT(""&$Q$1&"!$E5:$E1000"),MATCH($H34,INDIRECT(""&$Q$1&"!$A5:$A1000"),0)),"") -> المؤسسة1
C39: اسم ونسب المستفيد: | D39: =IFERROR(INDEX(INDIRECT(""&$Q$1&"!$F5:$F1000"),MATCH($B34,INDIRECT(""&$Q$1&"!$A5:$A1000"),0)),"") -> الاسم 7 | I39: اسم ونسب المستفيد: | J39: =IFERROR(INDEX(INDIRECT(""&$Q$1&"!$F5:$F1000"),MATCH($H34,INDIRECT(""&$Q$1&"!$A5:$A1000"),0)),"") -> الاسم 8
C40: رقم ب ت و: | D40: =IFERROR(INDEX(INDIRECT(""&$Q$1&"!$G5:$G1000"),MATCH($B34,INDIRECT(""&$Q$1&"!$A5:$A1000"),0)),"") -> P121218 | I40: رقم ب ت و: | J40: =IFERROR(INDEX(INDIRECT(""&$Q$1&"!$G5:$G1000"),MATCH($H34,INDIRECT(""&$Q$1&"!$A5:$A1000"),0)),"") -> P121219
B41: اليوم المخصص لاستخلاص المنحة: | D41: =Home!$H$15 -> 2021-12-17 | H41: اليوم المخصص لاستخلاص المنحة: | J41: =Home!$H$15 -> 2021-12-17
B42: المبلغ: | D42: =IFERROR(INDEX(INDIRECT(""&$Q$1&"!$I5:$I1000"),MATCH($B34,INDIRECT(""&$Q$1&"!$A5:$A1000"),0))&" درهم","") -> 480 درهم | I42: المبلغ: | J42: =IFERROR(INDEX(INDIRECT(""&$Q$1&"!$I5:$I1000"),MATCH($H34,INDIRECT(""&$Q$1&"!$A5:$A1000"),0))&" درهم","") -> 960 درهم
B43: امضاء وتوقيع السيد المدير: | H43: امضاء وتوقيع السيد المدير:
A44: =IF($D18=0," ","SDP") -> SDP
B45: =OFFSET($B45,-11,0)+2 -> 9 | H45: =OFFSET($H45,-11,0)+2 -> 10
B48: برنامج " تيسير" | H48: برنامج " تيسير"
C49: المؤسسة التعليمية: | D49: =IFERROR(INDEX(INDIRECT(""&$Q$1&"!$E5:$E1000"),MATCH($B45,INDIRECT(""&$Q$1&"!$A5:$A1000"),0)),"") -> المؤسسة1 | I49: المؤسسة التعليمية: | J49: =IFERROR(INDEX(INDIRECT(""&$Q$1&"!$E5:$E1000"),MATCH($H45,INDIRECT(""&$Q$1&"!$A5:$A1000"),0)),"") -> المؤسسة1
C50: اسم ونسب المستفيد: | D50: =IFERROR(INDEX(INDIRECT(""&$Q$1&"!$F5:$F1000"),MATCH($B45,INDIRECT(""&$Q$1&"!$A5:$A1000"),0)),"") -> الاسم 9 | I50: اسم ونسب المستفيد: | J50: =IFERROR(INDEX(INDIRECT(""&$Q$1&"!$F5:$F1000"),MATCH($H45,INDIRECT(""&$Q$1&"!$A5:$A1000"),0)),"") -> الاسم 10
C51: رقم ب ت و: | D51: =IFERROR(INDEX(INDIRECT(""&$Q$1&"!$G5:$G1000"),MATCH($B45,INDIRECT(""&$Q$1&"!$A5:$A1000"),0)),"") -> P121220 | I51: رقم ب ت و: | J51: =IFERROR(INDEX(INDIRECT(""&$Q$1&"!$G5:$G1000"),MATCH($H45,INDIRECT(""&$Q$1&"!$A5:$A1000"),0)),"") -> P121221
B52: اليوم المخصص لاستخلاص المنحة: | D52: =Home!$H$15 -> 2021-12-17 | H52: اليوم المخصص لاستخلاص المنحة: | J52: =Home!$H$15 -> 2021-12-17
B53: المبلغ: | D53: =IFERROR(INDEX(INDIRECT(""&$Q$1&"!$I5:$I1000"),MATCH($B45,INDIRECT(""&$Q$1&"!$A5:$A1000"),0))&" درهم","") -> 660 درهم | I53: المبلغ: | J53: =IFERROR(INDEX(INDIRECT(""&$Q$1&"!$I5:$I1000"),MATCH($H45,INDIRECT(""&$Q$1&"!$A5:$A1000"),0))&" درهم","") -> 1080 درهم
B54: امضاء وتوقيع السيد المدير: | H54: امضاء وتوقيع السيد المدير:
A55: =IF($D29=0," ","SDP") -> SDP
B56: =OFFSET($B56,-11,0)+2 -> 11 | H56: =OFFSET($H56,-11,0)+2 -> 12
B59: برنامج " تيسير" | H59: برنامج " تيسير"
C60: المؤسسة التعليمية: | D60: =IFERROR(INDEX(INDIRECT(""&$Q$1&"!$E5:$E1000"),MATCH($B56,INDIRECT(""&$Q$1&"!$A5:$A1000"),0)),"") -> المؤسسة1 | I60: المؤسسة التعليمية: | J60: =IFERROR(INDEX(INDIRECT(""&$Q$1&"!$E5:$E1000"),MATCH($H56,INDIRECT(""&$Q$1&"!$A5:$A1000"),0)),"") -> المؤسسة1
C61: اسم ونسب المستفيد: | D61: =IFERROR(INDEX(INDIRECT(""&$Q$1&"!$F5:$F1000"),MATCH($B56,INDIRECT(""&$Q$1&"!$A5:$A1000"),0)),"") -> الاسم 11 | I61: اسم ونسب المستفيد: | J61: =IFERROR(INDEX(INDIRECT(""&$Q$1&"!$F5:$F1000"),MATCH($H56,INDIRECT(""&$Q$1&"!$A5:$A1000"),0)),"") -> الاسم 12
C62: رقم ب ت و: | D62: =IFERROR(INDEX(INDIRECT(""&$Q$1&"!$G5:$G1000"),MATCH($B56,INDIRECT(""&$Q$1&"!$A5:$A1000"),0)),"") -> P121222 | I62: رقم ب ت و: | J62: =IFERROR(INDEX(INDIRECT(""&$Q$1&"!$G5:$G1000"),MATCH($H56,INDIRECT(""&$Q$1&"!$A5:$A1000"),0)),"") -> P121223
B63: اليوم المخصص لاستخلاص المنحة: | D63: =Home!$H$15 -> 2021-12-17 | H63: اليوم المخصص لاستخلاص المنحة: | J63: =Home!$H$15 -> 2021-12-17
B64: المبلغ: | D64: =IFERROR(INDEX(INDIRECT(""&$Q$1&"!$I5:$I1000"),MATCH($B56,INDIRECT(""&$Q$1&"!$A5:$A1000"),0))&" درهم","") -> 420 درهم | I64: المبلغ: | J64: =IFERROR(INDEX(INDIRECT(""&$Q$1&"!$I5:$I1000"),MATCH($H56,INDIRECT(""&$Q$1&"!$A5:$A1000"),0))&" درهم","") -> 240 درهم
B65: امضاء وتوقيع السيد المدير: | H65: امضاء وتوقيع السيد المدير:
A66: =IF($D40=0," ","SDP") -> SDP
B67: =OFFSET($B67,-11,0)+2 -> 13 | H67: =OFFSET($H67,-11,0)+2 -> 14
B70: برنامج " تيسير" | H70: برنامج " تيسير"
C71: المؤسسة التعليمية: | D71: =IFERROR(INDEX(INDIRECT(""&$Q$1&"!$E5:$E1000"),MATCH($B67,INDIRECT(""&$Q$1&"!$A5:$A1000"),0)),"") -> المؤسسة1 | I71: المؤسسة التعليمية: | J71: =IFERROR(INDEX(INDIRECT(""&$Q$1&"!$E5:$E1000"),MATCH($H67,INDIRECT(""&$Q$1&"!$A5:$A1000"),0)),"") -> المؤسسة1
C72: اسم ونسب المستفيد: | D72: =IFERROR(INDEX(INDIRECT(""&$Q$1&"!$F5:$F1000"),MATCH($B67,INDIRECT(""&$Q$1&"!$A5:$A1000"),0)),"") -> الاسم 13 | I72: اسم ونسب المستفيد: | J72: =IFERROR(INDEX(INDIRECT(""&$Q$1&"!$F5:$F1000"),MATCH($H67,INDIRECT(""&$Q$1&"!$A5:$A1000"),0)),"") -> الاسم 14
C73: رقم ب ت و: | D73: =IFERROR(INDEX(INDIRECT(""&$Q$1&"!$G5:$G1000"),MATCH($B67,INDIRECT(""&$Q$1&"!$A5:$A1000"),0)),"") -> P121224 | I73: رقم ب ت و: | J73: =IFERROR(INDEX(INDIRECT(""&$Q$1&"!$G5:$G1000"),MATCH($H67,INDIRECT(""&$Q$1&"!$A5:$A1000"),0)),"") -> P121225
B74: اليوم المخصص لاستخلاص المنحة: | D74: =Home!$H$15 -> 2021-12-17 | H74: اليوم المخصص لاستخلاص المنحة: | J74: =Home!$H$15 -> 2021-12-17
B75: المبلغ: | D75: =IFERROR(INDEX(INDIRECT(""&$Q$1&"!$I5:$I1000"),MATCH($B67,INDIRECT(""&$Q$1&"!$A5:$A1000"),0))&" درهم","") -> 420 درهم | I75: المبلغ: | J75: =IFERROR(INDEX(INDIRECT(""&$Q$1&"!$I5:$I1000"),MATCH($H67,INDIRECT(""&$Q$1&"!$A5:$A1000"),0))&" درهم","") -> 420 درهم
B76: امضاء وتوقيع السيد المدير: | H76: امضاء وتوقيع السيد المدير:
A77: =IF($D51=0," ","SDP") -> SDP
B78: =OFFSET($B78,-11,0)+2 -> 15 | H78: =OFFSET($H78,-11,0)+2 -> 16
B81: برنامج " تيسير" | H81: برنامج " تيسير"
C82: المؤسسة التعليمية: | D82: =IFERROR(INDEX(INDIRECT(""&$Q$1&"!$E5:$E1000"),MATCH($B78,INDIRECT(""&$Q$1&"!$A5:$A1000"),0)),"") -> المؤسسة1 | I82: المؤسسة التعليمية: | J82: =IFERROR(INDEX(INDIRECT(""&$Q$1&"!$E5:$E1000"),MATCH($H78,INDIRECT(""&$Q$1&"!$A5:$A1000"),0)),"") -> المؤسسة1
C83: اسم ونسب المستفيد: | D83: =IFERROR(INDEX(INDIRECT(""&$Q$1&"!$F5:$F1000"),MATCH($B78,INDIRECT(""&$Q$1&"!$A5:$A1000"),0)),"") -> الاسم 15 | I83: اسم ونسب المستفيد: | J83: =IFERROR(INDEX(INDIRECT(""&$Q$1&"!$F5:$F1000"),MATCH($H78,INDIRECT(""&$Q$1&"!$A5:$A1000"),0)),"") -> الاسم 16
C84: رقم ب ت و: | D84: =IFERROR(INDEX(INDIRECT(""&$Q$1&"!$G5:$G1000"),MATCH($B78,INDIRECT(""&$Q$1&"!$A5:$A1000"),0)),"") -> P121226 | I84: رقم ب ت و: | J84: =IFERROR(INDEX(INDIRECT(""&$Q$1&"!$G5:$G1000"),MATCH($H78,INDIRECT(""&$Q$1&"!$A5:$A1000"),0)),"") -> P121227
B85: اليوم المخصص لاستخلاص المنحة: | D85: =Home!$H$15 -> 2021-12-17 | H85: اليوم المخصص لاستخلاص المنحة: | J85: =Home!$H$15 -> 2021-12-17
B86: المبلغ: | D86: =IFERROR(INDEX(INDIRECT(""&$Q$1&"!$I5:$I1000"),MATCH($B78,INDIRECT(""&$Q$1&"!$A5:$A1000"),0))&" درهم","") -> 420 درهم | I86: المبلغ: | J86: =IFERROR(INDEX(INDIRECT(""&$Q$1&"!$I5:$I1000"),MATCH($H78,INDIRECT(""&$Q$1&"!$A5:$A1000"),0))&" درهم","") -> 420 درهم
B87: امضاء وتوقيع السيد المدير: | H87: امضاء وتوقيع السيد المدير:
A88: =IF($D62=0," ","SDP") -> SDP
B89: =OFFSET($B89,-11,0)+2 -> 17 | H89: =OFFSET($H89,-11,0)+2 -> 18
B92: برنامج " تيسير" | H92: برنامج " تيسير"
C93: المؤسسة التعليمية: | D93: =IFERROR(INDEX(INDIRECT(""&$Q$1&"!$E5:$E1000"),MATCH($B89,INDIRECT(""&$Q$1&"!$A5:$A1000"),0)),"") -> المؤسسة1 | I93: المؤسسة التعليمية: | J93: =IFERROR(INDEX(INDIRECT(""&$Q$1&"!$E5:$E1000"),MATCH($H89,INDIRECT(""&$Q$1&"!$A5:$A1000"),0)),"") -> المؤسسة1
C94: اسم ونسب المستفيد: | D94: =IFERROR(INDEX(INDIRECT(""&$Q$1&"!$F5:$F1000"),MATCH($B89,INDIRECT(""&$Q$1&"!$A5:$A1000"),0)),"") -> الاسم 17 | I94: اسم ونسب المستفيد: | J94: =IFERROR(INDEX(INDIRECT(""&$Q$1&"!$F5:$F1000"),MATCH($H89,INDIRECT(""&$Q$1&"!$A5:$A1000"),0)),"") -> الاسم 18
C95: رقم ب ت و: | D95: =IFERROR(INDEX(INDIRECT(""&$Q$1&"!$G5:$G1000"),MATCH($B89,INDIRECT(""&$Q$1&"!$A5:$A1000"),0)),"") -> P121228 | I95: رقم ب ت و: | J95: =IFERROR(INDEX(INDIRECT(""&$Q$1&"!$G5:$G1000"),MATCH($H89,INDIRECT(""&$Q$1&"!$A5:$A1000"),0)),"") -> P121229
B96: اليوم المخصص لاستخلاص المنحة: | D96: =Home!$H$15 -> 2021-12-17 | H96: اليوم المخصص لاستخلاص المنحة: | J96: =Home!$H$15 -> 2021-12-17
B97: المبلغ: | D97: =IFERROR(INDEX(INDIRECT(""&$Q$1&"!$I5:$I1000"),MATCH($B89,INDIRECT(""&$Q$1&"!$A5:$A1000"),0))&" درهم","") -> 720 درهم | I97: المبلغ: | J97: =IFERROR(INDEX(INDIRECT(""&$Q$1&"!$I5:$I1000"),MATCH($H89,INDIRECT(""&$Q$1&"!$A5:$A1000"),0))&" درهم","") -> 1020 درهم
B98: امضاء وتوقيع السيد المدير: | H98: امضاء وتوقيع السيد المدير:
A99: =IF($D73=0," ","SDP") -> SDP
B100: =OFFSET($B100,-11,0)+2 -> 19 | H100: =OFFSET($H100,-11,0)+2 -> 20
B103: برنامج " تيسير" | H103: برنامج " تيسير"
C104: المؤسسة التعليمية: | D104: =IFERROR(INDEX(INDIRECT(""&$Q$1&"!$E5:$E1000"),MATCH($B100,INDIRECT(""&$Q$1&"!$A5:$A1000"),0)),"") -> المؤسسة1 | I104: المؤسسة التعليمية: | J104: =IFERROR(INDEX(INDIRECT(""&$Q$1&"!$E5:$E1000"),MATCH($H100,INDIRECT(""&$Q$1&"!$A5:$A1000"),0)),"") -> المؤسسة1
C105: اسم ونسب المستفيد: | D105: =IFERROR(INDEX(INDIRECT(""&$Q$1&"!$F5:$F1000"),MATCH($B100,INDIRECT(""&$Q$1&"!$A5:$A1000"),0)),"") -> الاسم 19 | I105: اسم ونسب المستفيد: | J105: =IFERROR(INDEX(INDIRECT(""&$Q$1&"!$F5:$F1000"),MATCH($H100,INDIRECT(""&$Q$1&"!$A5:$A1000"),0)),"") -> الاسم 20
C106: رقم ب ت و: | D106: =IFERROR(INDEX(INDIRECT(""&$Q$1&"!$G5:$G1000"),MATCH($B100,INDIRECT(""&$Q$1&"!$A5:$A1000"),0)),"") -> P121230 | I106: رقم ب ت و: | J106: =IFERROR(INDEX(INDIRECT(""&$Q$1&"!$G5:$G1000"),MATCH($H100,INDIRECT(""&$Q$1&"!$A5:$A1000"),0)),"") -> P121231
B107: اليوم المخصص لاستخلاص المنحة: | D107: =Home!$H$15 -> 2021-12-17 | H107: اليوم المخصص لاستخلاص المنحة: | J107: =Home!$H$15 -> 2021-12-17
B108: المبلغ: | D108: =IFERROR(INDEX(INDIRECT(""&$Q$1&"!$I5:$I1000"),MATCH($B100,INDIRECT(""&$Q$1&"!$A5:$A1000"),0))&" درهم","") -> 420 درهم | I108: المبلغ: | J108: =IFERROR(INDEX(INDIRECT(""&$Q$1&"!$I5:$I1000"),MATCH($H100,INDIRECT(""&$Q$1&"!$A5:$A1000"),0))&" درهم","") -> 600 درهم
B109: امضاء وتوقيع السيد المدير: | H109: امضاء وتوقيع السيد المدير:
A110: =IF($D84=0," ","SDP") -> SDP
B111: =OFFSET($B111,-11,0)+2 -> 21 | H111: =OFFSET($H111,-11,0)+2 -> 22
B114: برنامج " تيسير" | H114: برنامج " تيسير"
C115: المؤسسة التعليمية: | D115: =IFERROR(INDEX(INDIRECT(""&$Q$1&"!$E5:$E1000"),MATCH($B111,INDIRECT(""&$Q$1&"!$A5:$A1000"),0)),"") -> المؤسسة1 | I115: المؤسسة التعليمية: | J115: =IFERROR(INDEX(INDIRECT(""&$Q$1&"!$E5:$E1000"),MATCH($H111,INDIRECT(""&$Q$1&"!$A5:$A1000"),0)),"") -> المؤسسة1
C116: اسم ونسب المستفيد: | D116: =IFERROR(INDEX(INDIRECT(""&$Q$1&"!$F5:$F1000"),MATCH($B111,INDIRECT(""&$Q$1&"!$A5:$A1000"),0)),"") -> الاسم 21 | I116: اسم ونسب المستفيد: | J116: =IFERROR(INDEX(INDIRECT(""&$Q$1&"!$F5:$F1000"),MATCH($H111,INDIRECT(""&$Q$1&"!$A5:$A1000"),0)),"") -> الاسم 22
C117: رقم ب ت و: | D117: =IFERROR(INDEX(INDIRECT(""&$Q$1&"!$G5:$G1000"),MATCH($B111,INDIRECT(""&$Q$1&"!$A5:$A1000"),0)),"") -> P121232 | I117: رقم ب ت و: | J117: =IFERROR(INDEX(INDIRECT(""&$Q$1&"!$G5:$G1000"),MATCH($H111,INDIRECT(""&$Q$1&"!$A5:$A1000"),0)),"") -> P121233
B118: اليوم المخصص لاستخلاص المنحة: | D118: =Home!$H$15 -> 2021-12-17 | H118: اليوم المخصص لاستخلاص المنحة: | J118: =Home!$H$15 -> 2021-12-17
B119: المبلغ: | D119: =IFERROR(INDEX(INDIRECT(""&$Q$1&"!$I5:$I1000"),MATCH($B111,INDIRECT(""&$Q$1&"!$A5:$A1000"),0))&" درهم","") -> 840 درهم | I119: المبلغ: | J119: =IFERROR(INDEX(INDIRECT(""&$Q$1&"!$I5:$I1000"),MATCH($H111,INDIRECT(""&$Q$1&"!$A5:$A1000"),0))&" درهم","") -> 720 درهم
B120: امضاء وتوقيع السيد المدير: | H120: امضاء وتوقيع السيد المدير:
A121: =IF($D95=0," ","SDP") -> SDP
B122: =OFFSET($B122,-11,0)+2 -> 23 | H122: =OFFSET($H122,-11,0)+2 -> 24
B125: برنامج " تيسير" | H125: برنامج " تيسير"
C126: المؤسسة التعليمية: | D126: =IFERROR(INDEX(INDIRECT(""&$Q$1&"!$E5:$E1000"),MATCH($B122,INDIRECT(""&$Q$1&"!$A5:$A1000"),0)),"") -> المؤسسة1 | I126: المؤسسة التعليمية: | J126: =IFERROR(INDEX(INDIRECT(""&$Q$1&"!$E5:$E1000"),MATCH($H122,INDIRECT(""&$Q$1&"!$A5:$A1000"),0)),"") -> المؤسسة1
C127: اسم ونسب المستفيد: | D127: =IFERROR(INDEX(INDIRECT(""&$Q$1&"!$F5:$F1000"),MATCH($B122,INDIRECT(""&$Q$1&"!$A5:$A1000"),0)),"") -> الاسم 23 | I127: اسم ونسب المستفيد: | J127: =IFERROR(INDEX(INDIRECT(""&$Q$1&"!$F5:$F1000"),MATCH($H122,INDIRECT(""&$Q$1&"!$A5:$A1000"),0)),"") -> الاسم 24
C128: رقم ب ت و: | D128: =IFERROR(INDEX(INDIRECT(""&$Q$1&"!$G5:$G1000"),MATCH($B122,INDIRECT(""&$Q$1&"!$A5:$A1000"),0)),"") -> P121234 | I128: رقم ب ت و: | J128: =IFERROR(INDEX(INDIRECT(""&$Q$1&"!$G5:$G1000"),MATCH($H122,INDIRECT(""&$Q$1&"!$A5:$A1000"),0)),"") -> P121235
B129: اليوم المخصص لاستخلاص المنحة: | D129: =Home!$H$15 -> 2021-12-17 | H129: اليوم المخصص لاستخلاص المنحة: | J129: =Home!$H$15 -> 2021-12-17
B130: المبلغ: | D130: =IFERROR(INDEX(INDIRECT(""&$Q$1&"!$I5:$I1000"),MATCH($B122,INDIRECT(""&$Q$1&"!$A5:$A1000"),0))&" درهم","") -> 420 درهم | I130: المبلغ: | J130: =IFERROR(INDEX(INDIRECT(""&$Q$1&"!$I5:$I1000"),MATCH($H122,INDIRECT(""&$Q$1&"!$A5:$A1000"),0))&" درهم","") -> 420 درهم
B131: امضاء وتوقيع السيد المدير: | H131: امضاء وتوقيع السيد المدير:
A132: =IF($D106=0," ","SDP") -> SDP
B133: =OFFSET($B133,-11,0)+2 -> 25 | H133: =OFFSET($H133,-11,0)+2 -> 26
B136: برنامج " تيسير" | H136: برنامج " تيسير"
C137: المؤسسة التعليمية: | D137: =IFERROR(INDEX(INDIRECT(""&$Q$1&"!$E5:$E1000"),MATCH($B133,INDIRECT(""&$Q$1&"!$A5:$A1000"),0)),"") -> المؤسسة1 | I137: المؤسسة التعليمية: | J137: =IFERROR(INDEX(INDIRECT(""&$Q$1&"!$E5:$E1000"),MATCH($H133,INDIRECT(""&$Q$1&"!$A5:$A1000"),0)),"") -> المؤسسة1
C138: اسم ونسب المستفيد: | D138: =IFERROR(INDEX(INDIRECT(""&$Q$1&"!$F5:$F1000"),MATCH($B133,INDIRECT(""&$Q$1&"!$A5:$A1000"),0)),"") -> الاسم 25 | I138: اسم ونسب المستفيد: | J138: =IFERROR(INDEX(INDIRECT(""&$Q$1&"!$F5:$F1000"),MATCH($H133,INDIRECT(""&$Q$1&"!$A5:$A1000"),0)),"") -> الاسم 26
C139: رقم ب ت و: | D139: =IFERROR(INDEX(INDIRECT(""&$Q$1&"!$G5:$G1000"),MATCH($B133,INDIRECT(""&$Q$1&"!$A5:$A1000"),0)),"") -> P121236 | I139: رقم ب ت و: | J139: =IFERROR(INDEX(INDIRECT(""&$Q$1&"!$G5:$G1000"),MATCH($H133,INDIRECT(""&$Q$1&"!$A5:$A1000"),0)),"") -> P121237
B140: اليوم المخصص لاستخلاص المنحة: | D140: =Home!$H$15 -> 2021-12-17 | H140: اليوم المخصص لاستخلاص المنحة: | J140: =Home!$H$15 -> 2021-12-17
B141: المبلغ: | D141: =IFERROR(INDEX(INDIRECT(""&$Q$1&"!$I5:$I1000"),MATCH($B133,INDIRECT(""&$Q$1&"!$A5:$A1000"),0))&" درهم","") -> 240 درهم | I141: المبلغ: | J141: =IFERROR(INDEX(INDIRECT(""&$Q$1&"!$I5:$I1000"),MATCH($H133,INDIRECT(""&$Q$1&"!$A5:$A1000"),0))&" درهم","") -> 240 درهم
B142: امضاء وتوقيع السيد المدير: | H142: امضاء وتوقيع السيد المدير:
A143: =IF($D117=0," ","SDP") -> SDP
B144: =OFFSET($B144,-11,0)+2 -> 27 | H144: =OFFSET($H144,-11,0)+2 -> 28
B147: برنامج " تيسير" | H147: برنامج " تيسير"
C148: المؤسسة التعليمية: | D148: =IFERROR(INDEX(INDIRECT(""&$Q$1&"!$E5:$E1000"),MATCH($B144,INDIRECT(""&$Q$1&"!$A5:$A1000"),0)),"") -> المؤسسة1 | I148: المؤسسة التعليمية: | J148: =IFERROR(INDEX(INDIRECT(""&$Q$1&"!$E5:$E1000"),MATCH($H144,INDIRECT(""&$Q$1&"!$A5:$A1000"),0)),"") -> المؤسسة1
C149: اسم ونسب المستفيد: | D149: =IFERROR(INDEX(INDIRECT(""&$Q$1&"!$F5:$F1000"),MATCH($B144,INDIRECT(""&$Q$1&"!$A5:$A1000"),0)),"") -> الاسم 27 | I149: اسم ونسب المستفيد: | J149: =IFERROR(INDEX(INDIRECT(""&$Q$1&"!$F5:$F1000"),MATCH($H144,INDIRECT(""&$Q$1&"!$A5:$A1000"),0)),"") -> الاسم 28
C150: رقم ب ت و: | D150: =IFERROR(INDEX(INDIRECT(""&$Q$1&"!$G5:$G1000"),MATCH($B144,INDIRECT(""&$Q$1&"!$A5:$A1000"),0)),"") -> P121238 | I150: رقم ب ت و: | J150: =IFERROR(INDEX(INDIRECT(""&$Q$1&"!$G5:$G1000"),MATCH($H144,INDIRECT(""&$Q$1&"!$A5:$A1000"),0)),"") -> P121239
B151: اليوم المخصص لاستخلاص المنحة: | D151: =Home!$H$15 -> 2021-12-17 | H151: اليوم المخصص لاستخلاص المنحة: | J151: =Home!$H$15 -> 2021-12-17
B152: المبلغ: | D152: =IFERROR(INDEX(INDIRECT(""&$Q$1&"!$I5:$I1000"),MATCH($B144,INDIRECT(""&$Q$1&"!$A5:$A1000"),0))&" درهم","") -> 420 درهم | I152: المبلغ: | J152: =IFERROR(INDEX(INDIRECT(""&$Q$1&"!$I5:$I1000"),MATCH($H144,INDIRECT(""&$Q$1&"!$A5:$A1000"),0))&" درهم","") -> 300 درهم
B153: امضاء وتوقيع السيد المدير: | H153: امضاء وتوقيع السيد المدير:
A154: =IF($D128=0," ","SDP") -> SDP
B155: =OFFSET($B155,-11,0)+2 -> 29 | H155: =OFFSET($H155,-11,0)+2 -> 30
B158: برنامج " تيسير" | H158: برنامج " تيسير"
C159: المؤسسة التعليمية: | D159: =IFERROR(INDEX(INDIRECT(""&$Q$1&"!$E5:$E1000"),MATCH($B155,INDIRECT(""&$Q$1&"!$A5:$A1000"),0)),"") -> المؤسسة1 | I159: المؤسسة التعليمية: | J159: =IFERROR(INDEX(INDIRECT(""&$Q$1&"!$E5:$E1000"),MATCH($H155,INDIRECT(""&$Q$1&"!$A5:$A1000"),0)),"") -> المؤسسة1
C160: اسم ونسب المستفيد: | D160: =IFERROR(INDEX(INDIRECT(""&$Q$1&"!$F5:$F1000"),MATCH($B155,INDIRECT(""&$Q$1&"!$A5:$A1000"),0)),"") -> الاسم 29 | I160: اسم ونسب المستفيد: | J160: =IFERROR(INDEX(INDIRECT(""&$Q$1&"!$F5:$F1000"),MATCH($H155,INDIRECT(""&$Q$1&"!$A5:$A1000"),0)),"") -> الاسم 30
C161: رقم ب ت و: | D161: =IFERROR(INDEX(INDIRECT(""&$Q$1&"!$G5:$G1000"),MATCH($B155,INDIRECT(""&$Q$1&"!$A5:$A1000"),0)),"") -> P121240 | I161: رقم ب ت و: | J161: =IFERROR(INDEX(INDIRECT(""&$Q$1&"!$G5:$G1000"),MATCH($H155,INDIRECT(""&$Q$1&"!$A5:$A1000"),0)),"") -> P121241
B162: اليوم المخصص لاستخلاص المنحة: | D162: =Home!$H$15 -> 2021-12-17 | H162: اليوم المخصص لاستخلاص المنحة: | J162: =Home!$H$15 -> 2021-12-17
B163: المبلغ: | D163: =IFERROR(INDEX(INDIRECT(""&$Q$1&"!$I5:$I1000"),MATCH($B155,INDIRECT(""&$Q$1&"!$A5:$A1000"),0))&" درهم","") -> 300 درهم | I163: المبلغ: | J163: =IFERROR(INDEX(INDIRECT(""&$Q$1&"!$I5:$I1000"),MATCH($H155,INDIRECT(""&$Q$1&"!$A5:$A1000"),0))&" درهم","") -> 660 درهم
B164: امضاء وتوقيع السيد المدير: | H164: امضاء وتوقيع السيد المدير:
A165: =IF($D139=0," ","SDP") -> SDP
B166: =OFFSET($B166,-11,0)+2 -> 31 | H166: =OFFSET($H166,-11,0)+2 -> 32
B169: برنامج " تيسير" | H169: برنامج " تيسير"
C170: المؤسسة التعليمية: | D170: =IFERROR(INDEX(INDIRECT(""&$Q$1&"!$E5:$E1000"),MATCH($B166,INDIRECT(""&$Q$1&"!$A5:$A1000"),0)),"") -> المؤسسة1 | I170: المؤسسة التعليمية: | J170: =IFERROR(INDEX(INDIRECT(""&$Q$1&"!$E5:$E1000"),MATCH($H166,INDIRECT(""&$Q$1&"!$A5:$A1000"),0)),"") -> المؤسسة1
C171: اسم ونسب المستفيد: | D171: =IFERROR(INDEX(INDIRECT(""&$Q$1&"!$F5:$F1000"),MATCH($B166,INDIRECT(""&$Q$1&"!$A5:$A1000"),0)),"") -> الاسم 31 | I171: اسم ونسب المستفيد: | J171: =IFERROR(INDEX(INDIRECT(""&$Q$1&"!$F5:$F1000"),MATCH($H166,INDIRECT(""&$Q$1&"!$A5:$A1000"),0)),"") -> الاسم 32
C172: رقم ب ت و: | D172: =IFERROR(INDEX(INDIRECT(""&$Q$1&"!$G5:$G1000"),MATCH($B166,INDIRECT(""&$Q$1&"!$A5:$A1000"),0)),"") -> P121242 | I172: رقم ب ت و: | J172: =IFERROR(INDEX(INDIRECT(""&$Q$1&"!$G5:$G1000"),MATCH($H166,INDIRECT(""&$Q$1&"!$A5:$A1000"),0)),"") -> P121243
B173: اليوم المخصص لاستخلاص المنحة: | D173: =Home!$H$15 -> 2021-12-17 | H173: اليوم المخصص لاستخلاص المنحة: | J173: =Home!$H$15 -> 2021-12-17
B174: المبلغ: | D174: =IFERROR(INDEX(INDIRECT(""&$Q$1&"!$I5:$I1000"),MATCH($B166,INDIRECT(""&$Q$1&"!$A5:$A1000"),0))&" درهم","") -> 420 درهم | I174: المبلغ: | J174: =IFERROR(INDEX(INDIRECT(""&$Q$1&"!$I5:$I1000"),MATCH($H166,INDIRECT(""&$Q$1&"!$A5:$A1000"),0))&" درهم","") -> 420 درهم
B175: امضاء وتوقيع السيد المدير: | H175: امضاء وتوقيع السيد المدير:
A176: =IF($D150=0," ","SDP") -> SDP
B177: =OFFSET($B177,-11,0)+2 -> 33 | H177: =OFFSET($H177,-11,0)+2 -> 34
B180: برنامج " تيسير" | H180: برنامج " تيسير"
C181: المؤسسة التعليمية: | D181: =IFERROR(INDEX(INDIRECT(""&$Q$1&"!$E5:$E1000"),MATCH($B177,INDIRECT(""&$Q$1&"!$A5:$A1000"),0)),"") -> المؤسسة1 | I181: المؤسسة التعليمية: | J181: =IFERROR(INDEX(INDIRECT(""&$Q$1&"!$E5:$E1000"),MATCH($H177,INDIRECT(""&$Q$1&"!$A5:$A1000"),0)),"") -> المؤسسة1
C182: اسم ونسب المستفيد: | D182: =IFERROR(INDEX(INDIRECT(""&$Q$1&"!$F5:$F1000"),MATCH($B177,INDIRECT(""&$Q$1&"!$A5:$A1000"),0)),"") -> الاسم 33 | I182: اسم ونسب المستفيد: | J182: =IFERROR(INDEX(INDIRECT(""&$Q$1&"!$F5:$F1000"),MATCH($H177,INDIRECT(""&$Q$1&"!$A5:$A1000"),0)),"") -> الاسم 34
C183: رقم ب ت و: | D183: =IFERROR(INDEX(INDIRECT(""&$Q$1&"!$G5:$G1000"),MATCH($B177,INDIRECT(""&$Q$1&"!$A5:$A1000"),0)),"") -> P121244 | I183: رقم ب ت و: | J183: =IFERROR(INDEX(INDIRECT(""&$Q$1&"!$G5:$G1000"),MATCH($H177,INDIRECT(""&$Q$1&"!$A5:$A1000"),0)),"") -> P121245
B184: اليوم المخصص لاستخلاص المنحة: | D184: =Home!$H$15 -> 2021-12-17 | H184: اليوم المخصص لاستخلاص المنحة: | J184: =Home!$H$15 -> 2021-12-17
B185: المبلغ: | D185: =IFERROR(INDEX(INDIRECT(""&$Q$1&"!$I5:$I1000"),MATCH($B177,INDIRECT(""&$Q$1&"!$A5:$A1000"),0))&" درهم","") -> 420 درهم | I185: المبلغ: | J185: =IFERROR(INDEX(INDIRECT(""&$Q$1&"!$I5:$I1000"),MATCH($H177,INDIRECT(""&$Q$1&"!$A5:$A1000"),0))&" درهم","") -> 420 درهم
B186: امضاء وتوقيع السيد المدير: | H186: امضاء وتوقيع السيد المدير:
A187: =IF($D161=0," ","SDP") -> SDP
B188: =OFFSET($B188,-11,0)+2 -> 35 | H188: =OFFSET($H188,-11,0)+2 -> 36
B191: برنامج " تيسير" | H191: برنامج " تيسير"
C192: المؤسسة التعليمية: | D192: =IFERROR(INDEX(INDIRECT(""&$Q$1&"!$E5:$E1000"),MATCH($B188,INDIRECT(""&$Q$1&"!$A5:$A1000"),0)),"") -> المؤسسة1 | I192: المؤسسة التعليمية: | J192: =IFERROR(INDEX(INDIRECT(""&$Q$1&"!$E5:$E1000"),MATCH($H188,INDIRECT(""&$Q$1&"!$A5:$A1000"),0)),"") -> المؤسسة1
C193: اسم ونسب المستفيد: | D193: =IFERROR(INDEX(INDIRECT(""&$Q$1&"!$F5:$F1000"),MATCH($B188,INDIRECT(""&$Q$1&"!$A5:$A1000"),0)),"") -> الاسم 35 | I193: اسم ونسب المستفيد: | J193: =IFERROR(INDEX(INDIRECT(""&$Q$1&"!$F5:$F1000"),MATCH($H188,INDIRECT(""&$Q$1&"!$A5:$A1000"),0)),"") -> الاسم 36
C194: رقم ب ت و: | D194: =IFERROR(INDEX(INDIRECT(""&$Q$1&"!$G5:$G1000"),MATCH($B188,INDIRECT(""&$Q$1&"!$A5:$A1000"),0)),"") -> P121246 | I194: رقم ب ت و: | J194: =IFERROR(INDEX(INDIRECT(""&$Q$1&"!$G5:$G1000"),MATCH($H188,INDIRECT(""&$Q$1&"!$A5:$A1000"),0)),"") -> P121247
B195: اليوم المخصص لاستخلاص المنحة: | D195: =Home!$H$15 -> 2021-12-17 | H195: اليوم المخصص لاستخلاص المنحة: | J195: =Home!$H$15 -> 2021-12-17
B196: المبلغ: | D196: =IFERROR(INDEX(INDIRECT(""&$Q$1&"!$I5:$I1000"),MATCH($B188,INDIRECT(""&$Q$1&"!$A5:$A1000"),0))&" درهم","") -> 300 درهم | I196: المبلغ: | J196: =IFERROR(INDEX(INDIRECT(""&$Q$1&"!$I5:$I1000"),MATCH($H188,INDIRECT(""&$Q$1&"!$A5:$A1000"),0))&" درهم","") -> 280 درهم
B197: امضاء وتوقيع السيد المدير: | H197: امضاء وتوقيع السيد المدير:
A198: =IF($D172=0," ","SDP") -> SDP
B199: =OFFSET($B199,-11,0)+2 -> 37 | H199: =OFFSET($H199,-11,0)+2 -> 38
B202: برنامج " تيسير" | H202: برنامج " تيسير"
C203: المؤسسة التعليمية: | D203: =IFERROR(INDEX(INDIRECT(""&$Q$1&"!$E5:$E1000"),MATCH($B199,INDIRECT(""&$Q$1&"!$A5:$A1000"),0)),"") -> المؤسسة1 | I203: المؤسسة التعليمية: | J203: =IFERROR(INDEX(INDIRECT(""&$Q$1&"!$E5:$E1000"),MATCH($H199,INDIRECT(""&$Q$1&"!$A5:$A1000"),0)),"") -> المؤسسة1
C204: اسم ونسب المستفيد: | D204: =IFERROR(INDEX(INDIRECT(""&$Q$1&"!$F5:$F1000"),MATCH($B199,INDIRECT(""&$Q$1&"!$A5:$A1000"),0)),"") -> الاسم 37 | I204: اسم ونسب المستفيد: | J204: =IFERROR(INDEX(INDIRECT(""&$Q$1&"!$F5:$F1000"),MATCH($H199,INDIRECT(""&$Q$1&"!$A5:$A1000"),0)),"") -> الاسم 38
C205: رقم ب ت و: | D205: =IFERROR(INDEX(INDIRECT(""&$Q$1&"!$G5:$G1000"),MATCH($B199,INDIRECT(""&$Q$1&"!$A5:$A1000"),0)),"") -> P121248 | I205: رقم ب ت و: | J205: =IFERROR(INDEX(INDIRECT(""&$Q$1&"!$G5:$G1000"),MATCH($H199,INDIRECT(""&$Q$1&"!$A5:$A1000"),0)),"") -> P121249
B206: اليوم المخصص لاستخلاص المنحة: | D206: =Home!$H$15 -> 2021-12-17 | H206: اليوم المخصص لاستخلاص المنحة: | J206: =Home!$H$15 -> 2021-12-17
B207: المبلغ: | D207: =IFERROR(INDEX(INDIRECT(""&$Q$1&"!$I5:$I1000"),MATCH($B199,INDIRECT(""&$Q$1&"!$A5:$A1000"),0))&" درهم","") -> 420 درهم | I207: المبلغ: | J207: =IFERROR(INDEX(INDIRECT(""&$Q$1&"!$I5:$I1000"),MATCH($H199,INDIRECT(""&$Q$1&"!$A5:$A1000"),0))&" درهم","") -> 420 درهم
B208: امضاء وتوقيع السيد المدير: | H208: امضاء وتوقيع السيد المدير:
A209: =IF($D183=0," ","SDP") -> SDP
B210: =OFFSET($B210,-11,0)+2 -> 39 | H210: =OFFSET($H210,-11,0)+2 -> 40
B213: برنامج " تيسير" | H213: برنامج " تيسير"
C214: المؤسسة التعليمية: | D214: =IFERROR(INDEX(INDIRECT(""&$Q$1&"!$E5:$E1000"),MATCH($B210,INDIRECT(""&$Q$1&"!$A5:$A1000"),0)),"") -> المؤسسة1 | I214: المؤسسة التعليمية: | J214: =IFERROR(INDEX(INDIRECT(""&$Q$1&"!$E5:$E1000"),MATCH($H210,INDIRECT(""&$Q$1&"!$A5:$A1000"),0)),"") -> المؤسسة1
C215: اسم ونسب المستفيد: | D215: =IFERROR(INDEX(INDIRECT(""&$Q$1&"!$F5:$F1000"),MATCH($B210,INDIRECT(""&$Q$1&"!$A5:$A1000"),0)),"") -> الاسم 39 | I215: اسم ونسب المستفيد: | J215: =IFERROR(INDEX(INDIRECT(""&$Q$1&"!$F5:$F1000"),MATCH($H210,INDIRECT(""&$Q$1&"!$A5:$A1000"),0)),"") -> الاسم 40
C216: رقم ب ت و: | D216: =IFERROR(INDEX(INDIRECT(""&$Q$1&"!$G5:$G1000"),MATCH($B210,INDIRECT(""&$Q$1&"!$A5:$A1000"),0)),"") -> P121250 | I216: رقم ب ت و: | J216: =IFERROR(INDEX(INDIRECT(""&$Q$1&"!$G5:$G1000"),MATCH($H210,INDIRECT(""&$Q$1&"!$A5:$A1000"),0)),"") -> P121251
B217: اليوم المخصص لاستخلاص المنحة: | D217: =Home!$H$15 -> 2021-12-17 | H217: اليوم المخصص لاستخلاص المنحة: | J217: =Home!$H$15 -> 2021-12-17
B218: المبلغ: | D218: =IFERROR(INDEX(INDIRECT(""&$Q$1&"!$I5:$I1000"),MATCH($B210,INDIRECT(""&$Q$1&"!$A5:$A1000"),0))&" درهم","") -> 600 درهم | I218: المبلغ: | J218: =IFERROR(INDEX(INDIRECT(""&$Q$1&"!$I5:$I1000"),MATCH($H210,INDIRECT(""&$Q$1&"!$A5:$A1000"),0))&" درهم","") -> 420 درهم
B219: امضاء وتوقيع السيد المدير: | H219: امضاء وتوقيع السيد المدير:
A220: =IF($D194=0," ","SDP") -> SDP
B221: =OFFSET($B221,-11,0)+2 -> 41 | H221: =OFFSET($H221,-11,0)+2 -> 42
B224: برنامج " تيسير" | H224: برنامج " تيسير"
C225: المؤسسة التعليمية: | D225: =IFERROR(INDEX(INDIRECT(""&$Q$1&"!$E5:$E1000"),MATCH($B221,INDIRECT(""&$Q$1&"!$A5:$A1000"),0)),"") -> المؤسسة1 | I225: المؤسسة التعليمية: | J225: =IFERROR(INDEX(INDIRECT(""&$Q$1&"!$E5:$E1000"),MATCH($H221,INDIRECT(""&$Q$1&"!$A5:$A1000"),0)),"") -> المؤسسة1
C226: اسم ونسب المستفيد: | D226: =IFERROR(INDEX(INDIRECT(""&$Q$1&"!$F5:$F1000"),MATCH($B221,INDIRECT(""&$Q$1&"!$A5:$A1000"),0)),"") -> الاسم 41 | I226: اسم ونسب المستفيد: | J226: =IFERROR(INDEX(INDIRECT(""&$Q$1&"!$F5:$F1000"),MATCH($H221,INDIRECT(""&$Q$1&"!$A5:$A1000"),0)),"") -> الاسم 42
C227: رقم ب ت و: | D227: =IFERROR(INDEX(INDIRECT(""&$Q$1&"!$G5:$G1000"),MATCH($B221,INDIRECT(""&$Q$1&"!$A5:$A1000"),0)),"") -> P121252 | I227: رقم ب ت و: | J227: =IFERROR(INDEX(INDIRECT(""&$Q$1&"!$G5:$G1000"),MATCH($H221,INDIRECT(""&$Q$1&"!$A5:$A1000"),0)),"") -> P121253
B228: اليوم المخصص لاستخلاص المنحة: | D228: =Home!$H$15 -> 2021-12-17 | H228: اليوم المخصص لاستخلاص المنحة: | J228: =Home!$H$15 -> 2021-12-17
B229: المبلغ: | D229: =IFERROR(INDEX(INDIRECT(""&$Q$1&"!$I5:$I1000"),MATCH($B221,INDIRECT(""&$Q$1&"!$A5:$A1000"),0))&" درهم","") -> 420 درهم | I229: المبلغ: | J229: =IFERROR(INDEX(INDIRECT(""&$Q$1&"!$I5:$I1000"),MATCH($H221,INDIRECT(""&$Q$1&"!$A5:$A1000"),0))&" درهم","") -> 480 درهم
B230: امضاء وتوقيع السيد المدير: | H230: امضاء وتوقيع السيد المدير:
A231: =IF($D205=0," ","SDP") -> SDP
B232: =OFFSET($B232,-11,0)+2 -> 43 | H232: =OFFSET($H232,-11,0)+2 -> 44
B235: برنامج " تيسير" | H235: برنامج " تيسير"
C236: المؤسسة التعليمية: | D236: =IFERROR(INDEX(INDIRECT(""&$Q$1&"!$E5:$E1000"),MATCH($B232,INDIRECT(""&$Q$1&"!$A5:$A1000"),0)),"") -> المؤسسة1 | I236: المؤسسة التعليمية: | J236: =IFERROR(INDEX(INDIRECT(""&$Q$1&"!$E5:$E1000"),MATCH($H232,INDIRECT(""&$Q$1&"!$A5:$A1000"),0)),"") -> المؤسسة1
C237: اسم ونسب المستفيد: | D237: =IFERROR(INDEX(INDIRECT(""&$Q$1&"!$F5:$F1000"),MATCH($B232,INDIRECT(""&$Q$1&"!$A5:$A1000"),0)),"") -> الاسم 43 | I237: اسم ونسب المستفيد: | J237: =IFERROR(INDEX(INDIRECT(""&$Q$1&"!$F5:$F1000"),MATCH($H232,INDIRECT(""&$Q$1&"!$A5:$A1000"),0)),"") -> الاسم 44
C238: رقم ب ت و: | D238: =IFERROR(INDEX(INDIRECT(""&$Q$1&"!$G5:$G1000"),MATCH($B232,INDIRECT(""&$Q$1&"!$A5:$A1000"),0)),"") -> P121254 | I238: رقم ب ت و: | J238: =IFERROR(INDEX(INDIRECT(""&$Q$1&"!$G5:$G1000"),MATCH($H232,INDIRECT(""&$Q$1&"!$A5:$A1000"),0)),"") -> P121255
B239: اليوم المخصص لاستخلاص المنحة: | D239: =Home!$H$15 -> 2021-12-17 | H239: اليوم المخصص لاستخلاص المنحة: | J239: =Home!$H$15 -> 2021-12-17
B240: المبلغ: | D240: =IFERROR(INDEX(INDIRECT(""&$Q$1&"!$I5:$I1000"),MATCH($B232,INDIRECT(""&$Q$1&"!$A5:$A1000"),0))&" درهم","") -> 420 درهم | I240: المبلغ: | J240: =IFERROR(INDEX(INDIRECT(""&$Q$1&"!$I5:$I1000"),MATCH($H232,INDIRECT(""&$Q$1&"!$A5:$A1000"),0))&" درهم","") -> 960 درهم
B241: امضاء وتوقيع السيد المدير: | H241: امضاء وتوقيع السيد المدير:
A242: =IF($D216=0," ","SDP") -> SDP
B243: =OFFSET($B243,-11,0)+2 -> 45 | H243: =OFFSET($H243,-11,0)+2 -> 46
B246: برنامج " تيسير" | H246: برنامج " تيسير"
C247: المؤسسة التعليمية: | D247: =IFERROR(INDEX(INDIRECT(""&$Q$1&"!$E5:$E1000"),MATCH($B243,INDIRECT(""&$Q$1&"!$A5:$A1000"),0)),"") -> المؤسسة1 | I247: المؤسسة التعليمية: | J247: =IFERROR(INDEX(INDIRECT(""&$Q$1&"!$E5:$E1000"),MATCH($H243,INDIRECT(""&$Q$1&"!$A5:$A1000"),0)),"") -> المؤسسة1
... 4291 more rows

Sheet Data
E7: لائحة الأسر المستفيدة من التحويل
B10: الأكاديمية | C10: المديرية الإقليمية | D10: الجماعة | E10: المؤسسة | F10: الاسم و النسب | G10: رقم البطاقة الوطنية | H10: رقم تيسير | I10: المبلغ بالدرهم
A11: 1 | B11: الأكاديمية | C11: المديرية | D11: الجماعة | E11: المؤسسة1 | F11: الاسم 1 | G11: P121212 | H11: 1111111111 | I11: 420
A12: 2 | B12: الأكاديمية | C12: المديرية | D12: الجماعة | E12: المؤسسة1 | F12: الاسم 2 | G12: P121213 | H12: 1111111112 | I12: 1080
A13: 3 | B13: الأكاديمية | C13: المديرية | D13: الجماعة | E13: المؤسسة1 | F13: الاسم 3 | G13: P121214 | H13: 1111111115 | I13: 1120
A14: 4 | B14: الأكاديمية | C14: المديرية | D14: الجماعة | E14: المؤسسة1 | F14: الاسم 4 | G14: P121215 | H14: 1111111118 | I14: 840
A15: 5 | B15: الأكاديمية | C15: المديرية | D15: الجماعة | E15: المؤسسة1 | F15: الاسم 5 | G15: P121216 | H15: 1111111121 | I15: 420
A16: 6 | B16: الأكاديمية | C16: المديرية | D16: الجماعة | E16: المؤسسة1 | F16: الاسم 6 | G16: P121217 | H16: 1111111124 | I16: 240
A17: 7 | B17: الأكاديمية | C17: المديرية | D17: الجماعة | E17: المؤسسة1 | F17: الاسم 7 | G17: P121218 | H17: 1111111127 | I17: 480
A18: 8 | B18: الأكاديمية | C18: المديرية | D18: الجماعة | E18: المؤسسة1 | F18: الاسم 8 | G18: P121219 | H18: 1111111130 | I18: 960
A19: 9 | B19: الأكاديمية | C19: المديرية | D19: الجماعة | E19: المؤسسة1 | F19: الاسم 9 | G19: P121220 | H19: 1111111133 | I19: 660
A20: 10 | B20: الأكاديمية | C20: المديرية | D20: الجماعة | E20: المؤسسة1 | F20: الاسم 10 | G20: P121221 | H20: 1111111136 | I20: 1080
A21: 11 | B21: الأكاديمية | C21: المديرية | D21: الجماعة | E21: المؤسسة1 | F21: الاسم 11 | G21: P121222 | H21: 1111111139 | I21: 420
A22: 12 | B22: الأكاديمية | C22: المديرية | D22: الجماعة | E22: المؤسسة1 | F22: الاسم 12 | G22: P121223 | H22: 1111111142 | I22: 240
A23: 13 | B23: الأكاديمية | C23: المديرية | D23: الجماعة | E23: المؤسسة1 | F23: الاسم 13 | G23: P121224 | H23: 1111111145 | I23: 420
A24: 14 | B24: الأكاديمية | C24: المديرية | D24: الجماعة | E24: المؤسسة1 | F24: الاسم 14 | G24: P121225 | H24: 1111111148 | I24: 420
A25: 15 | B25: الأكاديمية | C25: المديرية | D25: الجماعة | E25: المؤسسة1 | F25: الاسم 15 | G25: P121226 | H25: 1111111151 | I25: 420
A26: 16 | B26: الأكاديمية | C26: المديرية | D26: الجماعة | E26: المؤسسة1 | F26: الاسم 16 | G26: P121227 | H26: 1111111154 | I26: 420
A27: 17 | B27: الأكاديمية | C27: المديرية | D27: الجماعة | E27: المؤسسة1 | F27: الاسم 17 | G27: P121228 | H27: 1111111157 | I27: 720
A28: 18 | B28: الأكاديمية | C28: المديرية | D28: الجماعة | E28: المؤسسة1 | F28: الاسم 18 | G28: P121229 | H28: 1111111160 | I28: 1020
A29: 19 | B29: الأكاديمية | C29: المديرية | D29: الجماعة | E29: المؤسسة1 | F29: الاسم 19 | G29: P121230 | H29: 1111111163 | I29: 420
A30: 20 | B30: الأكاديمية | C30: المديرية | D30: الجماعة | E30: المؤسسة1 | F30: الاسم 20 | G30: P121231 | H30: 1111111166 | I30: 600
A31: 21 | B31: الأكاديمية | C31: المديرية | D31: الجماعة | E31: المؤسسة1 | F31: الاسم 21 | G31: P121232 | H31: 1111111169 | I31: 840
A32: 22 | B32: الأكاديمية | C32: المديرية | D32: الجماعة | E32: المؤسسة1 | F32: الاسم 22 | G32: P121233 | H32: 1111111172 | I32: 720
A33: 23 | B33: الأكاديمية | C33: المديرية | D33: الجماعة | E33: المؤسسة1 | F33: الاسم 23 | G33: P121234 | H33: 1111111175 | I33: 420
A34: 24 | B34: الأكاديمية | C34: المديرية | D34: الجماعة | E34: المؤسسة1 | F34: الاسم 24 | G34: P121235 | H34: 1111111178 | I34: 420
A35: 25 | B35: الأكاديمية | C35: المديرية | D35: الجماعة | E35: المؤسسة1 | F35: الاسم 25 | G35: P121236 | H35: 1111111181 | I35: 240
A36: 26 | B36: الأكاديمية | C36: المديرية | D36: الجماعة | E36: المؤسسة1 | F36: الاسم 26 | G36: P121237 | H36: 1111111184 | I36: 240
A37: 27 | B37: الأكاديمية | C37: المديرية | D37: الجماعة | E37: المؤسسة1 | F37: الاسم 27 | G37: P121238 | H37: 1111111187 | I37: 420
A38: 28 | B38: الأكاديمية | C38: المديرية | D38: الجماعة | E38: المؤسسة1 | F38: الاسم 28 | G38: P121239 | H38: 1111111190 | I38: 300
A39: 29 | B39: الأكاديمية | C39: المديرية | D39: الجماعة | E39: المؤسسة1 | F39: الاسم 29 | G39: P121240 | H39: 1111111193 | I39: 300
A40: 30 | B40: الأكاديمية | C40: المديرية | D40: الجماعة | E40: المؤسسة1 | F40: الاسم 30 | G40: P121241 | H40: 1111111196 | I40: 660
A41: 31 | B41: الأكاديمية | C41: المديرية | D41: الجماعة | E41: المؤسسة1 | F41: الاسم 31 | G41: P121242 | H41: 1111111199 | I41: 420
A42: 32 | B42: الأكاديمية | C42: المديرية | D42: الجماعة | E42: المؤسسة1 | F42: الاسم 32 | G42: P121243 | H42: 1111111202 | I42: 420
A43: 33 | B43: الأكاديمية | C43: المديرية | D43: الجماعة | E43: المؤسسة1 | F43: الاسم 33 | G43: P121244 | H43: 1111111205 | I43: 420
A44: 34 | B44: الأكاديمية | C44: المديرية | D44: الجماعة | E44: المؤسسة1 | F44: الاسم 34 | G44: P121245 | H44: 1111111208 | I44: 420
A45: 35 | B45: الأكاديمية | C45: المديرية | D45: الجماعة | E45: المؤسسة1 | F45: الاسم 35 | G45: P121246 | H45: 1111111211 | I45: 300
A46: 36 | B46: الأكاديمية | C46: المديرية | D46: الجماعة | E46: المؤسسة1 | F46: الاسم 36 | G46: P121247 | H46: 1111111214 | I46: 280
A47: 37 | B47: الأكاديمية | C47: المديرية | D47: الجماعة | E47: المؤسسة1 | F47: الاسم 37 | G47: P121248 | H47: 1111111217 | I47: 420
A48: 38 | B48: الأكاديمية | C48: المديرية | D48: الجماعة | E48: المؤسسة1 | F48: الاسم 38 | G48: P121249 | H48: 1111111220 | I48: 420
A49: 39 | B49: الأكاديمية | C49: المديرية | D49: الجماعة | E49: المؤسسة1 | F49: الاسم 39 | G49: P121250 | H49: 1111111223 | I49: 600
A50: 40 | B50: الأكاديمية | C50: المديرية | D50: الجماعة | E50: المؤسسة1 | F50: الاسم 40 | G50: P121251 | H50: 1111111226 | I50: 420
A51: 41 | B51: الأكاديمية | C51: المديرية | D51: الجماعة | E51: المؤسسة1 | F51: الاسم 41 | G51: P121252 | H51: 1111111229 | I51: 420
A52: 42 | B52: الأكاديمية | C52: المديرية | D52: الجماعة | E52: المؤسسة1 | F52: الاسم 42 | G52: P121253 | H52: 1111111232 | I52: 480
A53: 43 | B53: الأكاديمية | C53: المديرية | D53: الجماعة | E53: المؤسسة1 | F53: الاسم 43 | G53: P121254 | H53: 1111111235 | I53: 420
A54: 44 | B54: الأكاديمية | C54: المديرية | D54: الجماعة | E54: المؤسسة1 | F54: الاسم 44 | G54: P121255 | H54: 1111111238 | I54: 960
A55: 45 | B55: الأكاديمية | C55: المديرية | D55: الجماعة | E55: المؤسسة1 | F55: الاسم 45 | G55: P121256 | H55: 1111111241 | I55: 720
A56: 46 | B56: الأكاديمية | C56: المديرية | D56: الجماعة | E56: المؤسسة1 | F56: الاسم 46 | G56: P121257 | H56: 1111111244 | I56: 420
A57: 47 | B57: الأكاديمية | C57: المديرية | D57: الجماعة | E57: المؤسسة1 | F57: الاسم 47 | G57: P121258 | H57: 1111111247 | I57: 320
A58: 48 | B58: الأكاديمية | C58: المديرية | D58: الجماعة | E58: المؤسسة1 | F58: الاسم 48 | G58: P121259 | H58: 1111111250 | I58: 1200
A59: 49 | B59: الأكاديمية | C59: المديرية | D59: الجماعة | E59: المؤسسة1 | F59: الاسم 49 | G59: P121260 | H59: 1111111253 | I59: 180
A60: 50 | B60: الأكاديمية | C60: المديرية | D60: الجماعة | E60: المؤسسة1 | F60: الاسم 50 | G60: P121261 | H60: 1111111256 | I60: 420
A61: 51 | B61: الأكاديمية | C61: المديرية | D61: الجماعة | E61: المؤسسة1 | F61: الاسم 51 | G61: P121262 | H61: 1111111259 | I61: 660
A62: 52 | B62: الأكاديمية | C62: المديرية | D62: الجماعة | E62: المؤسسة1 | F62: الاسم 52 | G62: P121263 | H62: 1111111262 | I62: 560
A63: 53 | B63: الأكاديمية | C63: المديرية | D63: الجماعة | E63: المؤسسة1 | F63: الاسم 53 | G63: P121264 | H63: 1111111265 | I63: 360
A64: 54 | B64: الأكاديمية | C64: المديرية | D64: الجماعة | E64: المؤسسة1 | F64: الاسم 54 | G64: P121265 | H64: 1111111268 | I64: 780
A65: 55 | B65: الأكاديمية | C65: المديرية | D65: الجماعة | E65: المؤسسة1 | F65: الاسم 55 | G65: P121266 | H65: 1111111271 | I65: 420
A66: 56 | B66: الأكاديمية | C66: المديرية | D66: الجماعة | E66: المؤسسة1 | F66: الاسم 56 | G66: P121267 | H66: 1111111274 | I66: 420
A67: 57 | B67: الأكاديمية | C67: المديرية | D67: الجماعة | E67: المؤسسة1 | F67: الاسم 57 | G67: P121268 | H67: 1111111277 | I67: 300
A68: 58 | B68: الأكاديمية | C68: المديرية | D68: الجماعة | E68: المؤسسة1 | F68: الاسم 58 | G68: P121269 | H68: 1111111280 | I68: 300
A69: 59 | B69: الأكاديمية | C69: المديرية | D69: الجماعة | E69: المؤسسة1 | F69: الاسم 59 | G69: P121270 | H69: 1111111283 | I69: 240
A70: 60 | B70: الأكاديمية | C70: المديرية | D70: الجماعة | E70: المؤسسة1 | F70: الاسم 60 | G70: P121271 | H70: 1111111286 | I70: 420
A71: 61 | B71: الأكاديمية | C71: المديرية | D71: الجماعة | E71: المؤسسة1 | F71: الاسم 61 | G71: P121272 | H71: 1111111289 | I71: 180
A72: 62 | B72: الأكاديمية | C72: المديرية | D72: الجماعة | E72: المؤسسة1 | F72: الاسم 62 | G72: P121273 | H72: 1111111292 | I72: 480
A73: 63 | B73: الأكاديمية | C73: المديرية | D73: الجماعة | E73: المؤسسة1 | F73: الاسم 63 | G73: P121274 | H73: 1111111295 | I73: 420
A74: 64 | B74: الأكاديمية | C74: المديرية | D74: الجماعة | E74: المؤسسة1 | F74: الاسم 64 | G74: P121275 | H74: 1111111298 | I74: 420
A75: 65 | B75: الأكاديمية | C75: المديرية | D75: الجماعة | E75: المؤسسة1 | F75: الاسم 65 | G75: P121276 | H75: 1111111301 | I75: 540
A76: 66 | B76: الأكاديمية | C76: المديرية | D76: الجماعة | E76: المؤسسة1 | F76: الاسم 66 | G76: P121277 | H76: 1111111304 | I76: 660
A77: 67 | B77: الأكاديمية | C77: المديرية | D77: الجماعة | E77: المؤسسة1 | F77: الاسم 67 | G77: P121278 | H77: 1111111307 | I77: 840
A78: 68 | B78: الأكاديمية | C78: المديرية | D78: الجماعة | E78: المؤسسة1 | F78: الاسم 68 | G78: P121279 | H78: 1111111310 | I78: 420
A79: 69 | B79: الأكاديمية | C79: المديرية | D79: الجماعة | E79: المؤسسة1 | F79: الاسم 69 | G79: P121280 | H79: 1111111313 | I79: 480
A80: 70 | B80: الأكاديمية | C80: المديرية | D80: الجماعة | E80: المؤسسة1 | F80: الاسم 70 | G80: P121281 | H80: 1111111316 | I80: 660
A81: 71 | B81: الأكاديمية | C81: المديرية | D81: الجماعة | E81: المؤسسة1 | F81: الاسم 71 | G81: P121282 | H81: 1111111319 | I81: 180
A82: 72 | B82: الأكاديمية | C82: المديرية | D82: الجماعة | E82: المؤسسة1 | F82: الاسم 72 | G82: P121283 | H82: 1111111322 | I82: 420
A83: 73 | B83: الأكاديمية | C83: المديرية | D83: الجماعة | E83: المؤسسة1 | F83: الاسم 73 | G83: P121284 | H83: 1111111325 | I83: 1080
A84: 74 | B84: الأكاديمية | C84: المديرية | D84: الجماعة | E84: المؤسسة1 | F84: الاسم 74 | G84: P121285 | H84: 1111111328 | I84: 420
A85: 75 | B85: الأكاديمية | C85: المديرية | D85: الجماعة | E85: المؤسسة1 | F85: الاسم 75 | G85: P121286 | H85: 1111111331 | I85: 840
A86: 76 | B86: الأكاديمية | C86: المديرية | D86: الجماعة | E86: المؤسسة1 | F86: الاسم 76 | G86: P121287 | H86: 1111111334 | I86: 420
A87: 77 | B87: الأكاديمية | C87: المديرية | D87: الجماعة | E87: المؤسسة1 | F87: الاسم 77 | G87: P121288 | H87: 1111111337 | I87: 600
A88: 78 | B88: الأكاديمية | C88: المديرية | D88: الجماعة | E88: المؤسسة1 | F88: الاسم 78 | G88: P121289 | H88: 1111111340 | I88: 420
A89: 79 | B89: الأكاديمية | C89: المديرية | D89: الجماعة | E89: المؤسسة1 | F89: الاسم 79 | G89: P121290 | H89: 1111111343 | I89: 660
A90: 80 | B90: الأكاديمية | C90: المديرية | D90: الجماعة | E90: المؤسسة1 | F90: الاسم 80 | G90: P121291 | H90: 1111111346 | I90: 420
A91: 81 | B91: الأكاديمية | C91: المديرية | D91: الجماعة | E91: المؤسسة1 | F91: الاسم 81 | G91: P121292 | H91: 1111111349 | I91: 840
A92: 82 | B92: الأكاديمية | C92: المديرية | D92: الجماعة | E92: المؤسسة1 | F92: الاسم 82 | G92: P121293 | H92: 1111111352 | I92: 420
A93: 83 | B93: الأكاديمية | C93: المديرية | D93: الجماعة | E93: المؤسسة1 | F93: الاسم 83 | G93: P121294 | H93: 1111111355 | I93: 840
A94: 84 | B94: الأكاديمية | C94: المديرية | D94: الجماعة | E94: المؤسسة1 | F94: الاسم 84 | G94: P121295 | H94: 1111111358 | I94: 420
A95: 85 | B95: الأكاديمية | C95: المديرية | D95: الجماعة | E95: المؤسسة1 | F95: الاسم 85 | G95: P121296 | H95: 1111111361 | I95: 420
A96: 86 | B96: الأكاديمية | C96: المديرية | D96: الجماعة | E96: المؤسسة1 | F96: الاسم 86 | G96: P121297 | H96: 1111111364 | I96: 780
A97: 87 | B97: الأكاديمية | C97: المديرية | D97: الجماعة | E97: المؤسسة1 | F97: الاسم 87 | G97: P121298 | H97: 1111111367 | I97: 300
A98: 88 | B98: الأكاديمية | C98: المديرية | D98: الجماعة | E98: المؤسسة1 | F98: الاسم 88 | G98: P121299 | H98: 1111111370 | I98: 780
A99: 89 | B99: الأكاديمية | C99: المديرية | D99: الجماعة | E99: المؤسسة1 | F99: الاسم 89 | G99: P121300 | H99: 1111111373 | I99: 1080
A100: 90 | B100: الأكاديمية | C100: المديرية | D100: الجماعة | E100: المؤسسة1 | F100: الاسم 90 | G100: P121301 | H100: 1111111376 | I100: 1280
A101: 91 | B101: الأكاديمية | C101: المديرية | D101: الجماعة | E101: المؤسسة1 | F101: الاسم 91 | G101: P121302 | H101: 1111111379 | I101: 300
A102: 92 | B102: الأكاديمية | C102: المديرية | D102: الجماعة | E102: المؤسسة1 | F102: الاسم 92 | G102: P121303 | H102: 1111111382 | I102: 420
A103: 93 | B103: الأكاديمية | C103: المديرية | D103: الجماعة | E103: المؤسسة1 | F103: الاسم 93 | G103: P121304 | H103: 1111111385 | I103: 420
A104: 94 | B104: الأكاديمية | C104: المديرية | D104: الجماعة | E104: المؤسسة1 | F104: الاسم 94 | G104: P121305 | H104: 1111111388 | I104: 420
A105: 95 | B105: الأكاديمية | C105: المديرية | D105: الجماعة | E105: المؤسسة1 | F105: الاسم 95 | G105: P121306 | H105: 1111111391 | I105: 300
A106: 96 | B106: الأكاديمية | C106: المديرية | D106: الجماعة | E106: المؤسسة1 | F106: الاسم 96 | G106: P121307 | H106: 1111111394 | I106: 420
A107: 97 | B107: الأكاديمية | C107: المديرية | D107: الجماعة | E107: المؤسسة1 | F107: الاسم 97 | G107: P121308 | H107: 1111111397 | I107: 200
A108: 98 | B108: الأكاديمية | C108: المديرية | D108: الجماعة | E108: المؤسسة1 | F108: الاسم 98 | G108: P121309 | H108: 1111111400 | I108: 1020
A109: 99 | B109: الأكاديمية | C109: المديرية | D109: الجماعة | E109: المؤسسة1 | F109: الاسم 99 | G109: P121310 | H109: 1111111403 | I109: 540
A110: 100 | B110: الأكاديمية | C110: المديرية | D110: الجماعة | E110: المؤسسة1 | F110: الاسم 100 | G110: P121311 | H110: 1111111406 | I110: 660
A111: 101 | B111: الأكاديمية | C111: المديرية | D111: الجماعة | E111: المؤسسة1 | F111: الاسم 101 | G111: P121312 | H111: 1111111409 | I111: 840
A112: 102 | B112: الأكاديمية | C112: المديرية | D112: الجماعة | E112: المؤسسة1 | F112: الاسم 102 | G112: P121313 | H112: 1111111412 | I112: 300
A113: 103 | B113: الأكاديمية | C113: المديرية | D113: الجماعة | E113: المؤسسة1 | F113: الاسم 103 | G113: P121314 | H113: 1111111415 | I113: 840
A114: 104 | B114: الأكاديمية | C114: المديرية | D114: الجماعة | E114: المؤسسة1 | F114: الاسم 104 | G114: P121315 | H114: 1111111418 | I114: 720
A115: 105 | B115: الأكاديمية | C115: المديرية | D115: الجماعة | E115: المؤسسة1 | F115: الاسم 105 | G115: P121316 | H115: 1111111421 | I115: 600
A116: 106 | B116: الأكاديمية | C116: المديرية | D116: الجماعة | E116: المؤسسة1 | F116: الاسم 106 | G116: P121317 | H116: 1111111424 | I116: 300
A117: 107 | B117: الأكاديمية | C117: المديرية | D117: الجماعة | E117: المؤسسة1 | F117: الاسم 107 | G117: P121318 | H117: 1111111427 | I117: 180
A118: 108 | B118: الأكاديمية | C118: المديرية | D118: الجماعة | E118: المؤسسة1 | F118: الاسم 108 | G118: P121319 | H118: 1111111430 | I118: 240
A119: 109 | B119: الأكاديمية | C119: المديرية | D119: الجماعة | E119: المؤسسة1 | F119: الاسم 109 | G119: P121320 | H119: 1111111433 | I119: 360
A120: 110 | B120: الأكاديمية | C120: المديرية | D120: الجماعة | E120: المؤسسة1 | F120: الاسم 110 | G120: P121321 | H120: 1111111436 | I120: 720
A121: 111 | B121: الأكاديمية | C121: المديرية | D121: الجماعة | E121: المؤسسة1 | F121: الاسم 111 | G121: P121322 | H121: 1111111439 | I121: 180
A122: 112 | B122: الأكاديمية | C122: المديرية | D122: الجماعة | E122: المؤسسة1 | F122: الاسم 112 | G122: P121323 | H122: 1111111442 | I122: 800
A123: 113 | B123: الأكاديمية | C123: المديرية | D123: الجماعة | E123: المؤسسة1 | F123: الاسم 113 | G123: P121324 | H123: 1111111445 | I123: 420
A124: 114 | B124: الأكاديمية | C124: المديرية | D124: الجماعة | E124: المؤسسة1 | F124: الاسم 114 | G124: P121325 | H124: 1111111448 | I124: 660
A125: 115 | B125: الأكاديمية | C125: المديرية | D125: الجماعة | E125: المؤسسة1 | F125: الاسم 115 | G125: P121326 | H125: 1111111451 | I125: 960
A126: 116 | B126: الأكاديمية | C126: المديرية | D126: الجماعة | E126: المؤسسة1 | F126: الاسم 116 | G126: P121327 | H126: 1111111454 | I126: 1260
A127: 117 | B127: الأكاديمية | C127: المديرية | D127: الجماعة | E127: المؤسسة1 | F127: الاسم 117 | G127: P121328 | H127: 1111111457 | I127: 420
A128: 118 | B128: الأكاديمية | C128: المديرية | D128: الجماعة | E128: المؤسسة1 | F128: الاسم 118 | G128: P121329 | H128: 1111111460 | I128: 480
A129: 119 | B129: الأكاديمية | C129: المديرية | D129: الجماعة | E129: المؤسسة1 | F129: الاسم 119 | G129: P121330 | H129: 1111111463 | I129: 540
A130: 120 | B130: الأكاديمية | C130: المديرية | D130: الجماعة | E130: المؤسسة2 | F130: الاسم 120 | G130: P121331 | H130: 1111111466 | I130: 420
A131: 121 | B131: الأكاديمية | C131: المديرية | D131: الجماعة | E131: المؤسسة2 | F131: الاسم 121 | G131: P121332 | H131: 1111111469 | I131: 720
A132: 122 | B132: الأكاديمية | C132: المديرية | D132: الجماعة | E132: المؤسسة2 | F132: الاسم 122 | G132: P121333 | H132: 1111111472 | I132: 540
A133: 123 | B133: الأكاديمية | C133: المديرية | D133: الجماعة | E133: المؤسسة2 | F133: الاسم 123 | G133: P121334 | H133: 1111111475 | I133: 480
A134: 124 | B134: الأكاديمية | C134: المديرية | D134: الجماعة | E134: المؤسسة2 | F134: الاسم 124 | G134: P121335 | H134: 1111111478 | I134: 480
A135: 125 | B135: الأكاديمية | C135: المديرية | D135: الجماعة | E135: المؤسسة2 | F135: الاسم 125 | G135: P121336 | H135: 1111111481 | I135: 720
A136: 126 | B136: الأكاديمية | C136: المديرية | D136: الجماعة | E136: المؤسسة2 | F136: الاسم 126 | G136: P121337 | H136: 1111111484 | I136: 420
A137: 127 | B137: الأكاديمية | C137: المديرية | D137: الجماعة | E137: المؤسسة2 | F137: الاسم 127 | G137: P121338 | H137: 1111111487 | I137: 480
A138: 128 | B138: الأكاديمية | C138: المديرية | D138: الجماعة | E138: المؤسسة2 | F138: الاسم 128 | G138: P121339 | H138: 1111111490 | I138: 480
A139: 129 | B139: الأكاديمية | C139: المديرية | D139: الجماعة | E139: المؤسسة2 | F139: الاسم 129 | G139: P121340 | H139: 1111111493 | I139: 720
A140: 130 | B140: الأكاديمية | C140: المديرية | D140: الجماعة | E140: المؤسسة2 | F140: الاسم 130 | G140: P121341 | H140: 1111111496 | I140: 660
A141: 131 | B141: الأكاديمية | C141: المديرية | D141: الجماعة | E141: المؤسسة2 | F141: الاسم 131 | G141: P121342 | H141: 1111111499 | I141: 240
A142: 132 | B142: الأكاديمية | C142: المديرية | D142: الجماعة | E142: المؤسسة2 | F142: الاسم 132 | G142: P121343 | H142: 1111111502 | I142: 240
A143: 133 | B143: الأكاديمية | C143: المديرية | D143: الجماعة | E143: المؤسسة2 | F143: الاسم 133 | G143: P121344 | H143: 1111111505 | I143: 420
A144: 134 | B144: الأكاديمية | C144: المديرية | D144: الجماعة | E144: المؤسسة2 | F144: الاسم 134 | G144: P121345 | H144: 1111111508 | I144: 600
A145: 135 | B145: الأكاديمية | C145: المديرية | D145: الجماعة | E145: المؤسسة2 | F145: الاسم 135 | G145: P121346 | H145: 1111111511 | I145: 480
A146: 136 | B146: الأكاديمية | C146: المديرية | D146: الجماعة | E146: المؤسسة2 | F146: الاسم 136 | G146: P121347 | H146: 1111111514 | I146: 240
A147: 137 | B147: الأكاديمية | C147: المديرية | D147: الجماعة | E147: المؤسسة2 | F147: الاسم 137 | G147: P121348 | H147: 1111111517 | I147: 420
A148: 138 | B148: الأكاديمية | C148: المديرية | D148: الجماعة | E148: المؤسسة2 | F148: الاسم 138 | G148: P121349 | H148: 1111111520 | I148: 420
A149: 139 | B149: الأكاديمية | C149: المديرية | D149: الجماعة | E149: المؤسسة2 | F149: الاسم 139 | G149: P121350 | H149: 1111111523 | I149: 420
A150: 140 | B150: الأكاديمية | C150: المديرية | D150: الجماعة | E150: المؤسسة2 | F150: الاسم 140 | G150: P121351 | H150: 1111111526 | I150: 420
A151: 141 | B151: الأكاديمية | C151: المديرية | D151: الجماعة | E151: المؤسسة2 | F151: الاسم 141 | G151: P121352 | H151: 1111111529 | I151: 240
A152: 142 | B152: الأكاديمية | C152: المديرية | D152: الجماعة | E152: المؤسسة2 | F152: الاسم 142 | G152: P121353 | H152: 1111111532 | I152: 420
A153: 143 | B153: الأكاديمية | C153: المديرية | D153: الجماعة | E153: المؤسسة2 | F153: الاسم 143 | G153: P121354 | H153: 1111111535 | I153: 620
A154: 144 | B154: الأكاديمية | C154: المديرية | D154: الجماعة | E154: المؤسسة2 | F154: الاسم 144 | G154: P121355 | H154: 1111111538 | I154: 480
A155: 145 | B155: الأكاديمية | C155: المديرية | D155: الجماعة | E155: المؤسسة2 | F155: الاسم 145 | G155: P121356 | H155: 1111111541 | I155: 420
A156: 146 | B156: الأكاديمية | C156: المديرية | D156: الجماعة | E156: المؤسسة2 | F156: الاسم 146 | G156: P121357 | H156: 1111111544 | I156: 180
A157: 147 | B157: الأكاديمية | C157: المديرية | D157: الجماعة | E157: المؤسسة2 | F157: الاسم 147 | G157: P121358 | H157: 1111111547 | I157: 180
A158: 148 | B158: الأكاديمية | C158: المديرية | D158: الجماعة | E158: المؤسسة2 | F158: الاسم 148 | G158: P121359 | H158: 1111111550 | I158: 180
A159: 149 | B159: الأكاديمية | C159: المديرية | D159: الجماعة | E159: المؤسسة2 | F159: الاسم 149 | G159: P121360 | H159: 1111111553 | I159: 180
A160: 150 | B160: الأكاديمية | C160: المديرية | D160: الجماعة | E160: المؤسسة2 | F160: الاسم 150 | G160: P121361 | H160: 1111111556 | I160: 180
A161: 151 | B161: الأكاديمية | C161: المديرية | D161: الجماعة | E161: المؤسسة2 | F161: الاسم 151 | G161: P121362 | H161: 1111111559 | I161: 180
A162: 152 | B162: الأكاديمية | C162: المديرية | D162: الجماعة | E162: المؤسسة2 | F162: الاسم 152 | G162: P121363 | H162: 1111111562 | I162: 180
A163: 153 | B163: الأكاديمية | C163: المديرية | D163: الجماعة | E163: المؤسسة2 | F163: الاسم 153 | G163: P121364 | H163: 1111111565 | I163: 180
A164: 154 | B164: الأكاديمية | C164: المديرية | D164: الجماعة | E164: المؤسسة2 | F164: الاسم 154 | G164: P121365 | H164: 1111111568 | I164: 180
A165: 155 | B165: الأكاديمية | C165: المديرية | D165: الجماعة | E165: المؤسسة2 | F165: الاسم 155 | G165: P121366 | H165: 1111111571 | I165: 180
A166: 156 | B166: الأكاديمية | C166: المديرية | D166: الجماعة | E166: المؤسسة2 | F166: الاسم 156 | G166: P121367 | H166: 1111111574 | I166: 180
A167: 157 | B167: الأكاديمية | C167: المديرية | D167: الجماعة | E167: المؤسسة2 | F167: الاسم 157 | G167: P121368 | H167: 1111111577 | I167: 180
A168: 158 | B168: الأكاديمية | C168: المديرية | D168: الجماعة | E168: المؤسسة2 | F168: الاسم 158 | G168: P121369 | H168: 1111111580 | I168: 180
A169: 159 | B169: الأكاديمية | C169: المديرية | D169: الجماعة | E169: المؤسسة2 | F169: الاسم 159 | G169: P121370 | H169: 1111111583 | I169: 180
A170: 160 | B170: الأكاديمية | C170: المديرية | D170: الجماعة | E170: المؤسسة2 | F170: الاسم 160 | G170: P121371 | H170: 1111111586 | I170: 180
A171: 161 | B171: الأكاديمية | C171: المديرية | D171: الجماعة | E171: المؤسسة2 | F171: الاسم 161 | G171: P121372 | H171: 1111111589 | I171: 180
A172: 162 | B172: الأكاديمية | C172: المديرية | D172: الجماعة | E172: المؤسسة2 | F172: الاسم 162 | G172: P121373 | H172: 1111111592 | I172: 180
A173: 163 | B173: الأكاديمية | C173: المديرية | D173: الجماعة | E173: المؤسسة2 | F173: الاسم 163 | G173: P121374 | H173: 1111111595 | I173: 180
A174: 164 | B174: الأكاديمية | C174: المديرية | D174: الجماعة | E174: المؤسسة2 | F174: الاسم 164 | G174: P121375 | H174: 1111111598 | I174: 180
A175: 165 | B175: الأكاديمية | C175: المديرية | D175: الجماعة | E175: المؤسسة2 | F175: الاسم 165 | G175: P121376 | H175: 1111111601 | I175: 180
A176: 166 | B176: الأكاديمية | C176: المديرية | D176: الجماعة | E176: المؤسسة2 | F176: الاسم 166 | G176: P121377 | H176: 1111111604 | I176: 420
A177: 167 | B177: الأكاديمية | C177: المديرية | D177: الجماعة | E177: المؤسسة3 | F177: الاسم 167 | G177: P121378 | H177: 1111111607 | I177: 420
A178: 168 | B178: الأكاديمية | C178: المديرية | D178: الجماعة | E178: المؤسسة3 | F178: الاسم 168 | G178: P121379 | H178: 1111111610 | I178: 420
A179: 169 | B179: الأكاديمية | C179: المديرية | D179: الجماعة | E179: المؤسسة3 | F179: الاسم 169 | G179: P121380 | H179: 1111111613 | I179: 600
A180: 170 | B180: الأكاديمية | C180: المديرية | D180: الجماعة | E180: المؤسسة3 | F180: الاسم 170 | G180: P121381 | H180: 1111111616 | I180: 240
A181: 171 | B181: الأكاديمية | C181: المديرية | D181: الجماعة | E181: المؤسسة3 | F181: الاسم 171 | G181: P121382 | H181: 1111111619 | I181: 420
A182: 172 | B182: الأكاديمية | C182: المديرية | D182: الجماعة | E182: المؤسسة3 | F182: الاسم 172 | G182: P121383 | H182: 1111111622 | I182: 180
A183: 173 | B183: الأكاديمية | C183: المديرية | D183: الجماعة | E183: المؤسسة3 | F183: الاسم 173 | G183: P121384 | H183: 1111111625 | I183: 180
A184: 174 | B184: الأكاديمية | C184: المديرية | D184: الجماعة | E184: المؤسسة3 | F184: الاسم 174 | G184: P121385 | H184: 1111111628 | I184: 180
A185: 175 | B185: الأكاديمية | C185: المديرية | D185: الجماعة | E185: المؤسسة3 | F185: الاسم 175 | G185: P121386 | H185: 1111111631 | I185: 420
A186: 176 | B186: الأكاديمية | C186: المديرية | D186: الجماعة | E186: المؤسسة3 | F186: الاسم 176 | G186: P121387 | H186: 1111111634 | I186: 240
A187: 177 | B187: الأكاديمية | C187: المديرية | D187: الجماعة | E187: المؤسسة3 | F187: الاسم 177 | G187: P121388 | H187: 1111111637 | I187: 420
A188: 178 | B188: الأكاديمية | C188: المديرية | D188: الجماعة | E188: المؤسسة4 | F188: الاسم 178 | G188: P121389 | H188: 1111111640 | I188: 300
A189: 179 | B189: الأكاديمية | C189: المديرية | D189: الجماعة | E189: المؤسسة4 | F189: الاسم 179 | G189: P121390 | H189: 1111111643 | I189: 860
A190: 180 | B190: الأكاديمية | C190: المديرية | D190: الجماعة | E190: المؤسسة4 | F190: الاسم 180 | G190: P121391 | H190: 1111111646 | I190: 480
A191: 181 | B191: الأكاديمية | C191: المديرية | D191: الجماعة | E191: المؤسسة4 | F191: الاسم 181 | G191: P121392 | H191: 1111111649 | I191: 180
